DEPARTMENT_FAMILY,ENTITY,PAYMENT_DATE,EXPENSE_TYPE,EXPENSE_AREA,SUPPLIER,TRANSACTION_NUMBER,AMOUNT,DESCRIPTION
Ministry of Justice,MoJ HQ,30/06/2016,223000-Other Expenditure,NZ401-Finance Group Feeder,ALLEN LANE CONSULTANCY LTD,2026911,"338,280.00 ",Fees for Managed Accounting Service core contract and call off charges utilised across MoJ
Ministry of Justice,MoJ HQ,30/06/2016,223000-Other Expenditure,NZ401-Finance Group Feeder,ALLEN LANE CONSULTANCY LTD,2026911,"193,080.00 ",Fees for Managed Accounting Service core contract and call off charges utilised across MoJ
Ministry of Justice,MoJ HQ,30/06/2016,223000-Other Expenditure,NZ401-Finance Group Feeder,ALLEN LANE CONSULTANCY LTD,2026911,"940,470.00 ",Fees for Managed Accounting Service core contract and call off charges utilised across MoJ
Ministry of Justice,MoJ HQ,09/06/2016,223000-Other Expenditure,NZ401-Finance Group Feeder,ALLEN LANE CONSULTANCY#00000108,16547,"355,194.00 ",Fees for Managed Accounting Service core contract and call off charges utilised across MoJ
Ministry of Justice,MoJ HQ,02/06/2016,265000-IT & Telecommunications,QY200-OU10 Billback,ATOS IT SERVICES UK LTD,2025452,"214,564.65 ",Provision of a sustainable print service utilised across MoJ
Ministry of Justice,MoJ HQ,06/06/2016,265000-IT & Telecommunications,QY200-OU10 Billback,ATOS IT SERVICES UK LTD,2025574,"629,090.68 ",Provision of internet protocol telephony service utilised across MoJ
Ministry of Justice,MoJ HQ,02/06/2016,265000-IT & Telecommunications,QY200-OU10 Billback,ATOS IT SERVICES UK LTD,2025452,"78,132.97 ",Provision of telephony service utilised across MoJ
Ministry of Justice,MoJ HQ,30/06/2016,265000-IT & Telecommunications,QY200-OU10 Billback,ATOS IT SERVICES UK LTD,2026919,"629,090.68 ",Provision of internet protocol telephony service utilised across MoJ
Ministry of Justice,MoJ HQ,30/06/2016,265000-IT & Telecommunications,QY200-OU10 Billback,ATOS IT SERVICES UK LTD,2026918,"78,132.97 ",Provision of telephony service utilised across MoJ
Ministry of Justice,MoJ HQ,30/06/2016,265000-IT & Telecommunications,NZ900-Finance & Corporate Services,ATOS IT SERVICES UK LTD,2026918,"6,712.50 ",Provision of IT Peripherals and individually ordered software and equipment utilised across MoJ HQ
Ministry of Justice,MoJ HQ,06/06/2016,212001-Agency staff,QY200-OU10 Billback,CAPITA BUSINESS SERVICES LTD,2025593,"620,383.03 ",Fees and expenses for temporary contract staff utilised across MoJ
Ministry of Justice,MoJ HQ,06/06/2016,212001-Agency staff,QY200-OU10 Billback,CAPITA BUSINESS SERVICES LTD,2025593,"655,101.96 ",Fees and expenses for temporary contract staff utilised across MoJ
Ministry of Justice,MoJ HQ,16/06/2016,212001-Agency staff,QY200-OU10 Billback,CAPITA BUSINESS SERVICES LTD,2026135,"596,996.33 ",Fees and expenses for temporary contract staff utilised across MoJ
Ministry of Justice,MoJ HQ,16/06/2016,265000-IT & Telecommunications,QY200-OU10 Billback,EVERYTHING EVERYWHERE LTD,2026160,"34,206.65 ",Provision of telephony service utilised across MoJ
Ministry of Justice,MoJ HQ,17/06/2016,263000-Other Contracted Out Services,QT502-Office of the Accountant General,NATIONAL SAVINGS & INVESTMENTS,11851,"444,401.96 ",Provision of Court Funds Office operational service on behalf of MoJ
Ministry of Justice,MoJ HQ,06/06/2016,224000-Staff travel and other,QY200-OU10 Billback,REDFERN TRAVEL LTD,2025687,"146,118.56 ",Provision of hotel & travel bookings utilised across MoJ
Ministry of Justice,MoJ HQ,16/06/2016,224000-Staff travel and other,QY200-OU10 Billback,REDFERN TRAVEL LTD,2026249,"118,401.36 ",Provision of hotel & travel bookings utilised across MoJ
Ministry of Justice,MoJ HQ,16/06/2016,224000-Staff travel and other,QY200-OU10 Billback,REDFERN TRAVEL LTD,2026249,"162,908.69 ",Provision of hotel & travel bookings utilised across MoJ
Ministry of Justice,MoJ HQ,23/06/2016,224000-Staff travel and other,QY200-OU10 Billback,REDFERN TRAVEL LTD,2026677,"165,292.94 ",Provision of hotel & travel bookings utilised across MoJ
Ministry of Justice,MoJ HQ,02/06/2016,265000-IT & Telecommunications,QY200-OU10 Billback,VODAFONE CORPORATE LTD,2025559,"27,785.90 ",Provision of telephony service utilised across MoJ
Ministry of Justice,MoJ HQ,30/06/2016,223000-Other Expenditure,QY300-Fleet Car Mgmt,ZURICH MUNICIPAL,2027139,"26,121.92 ",Provison of fleet car insurance utilised across MoJ
Ministry of Justice,MoJ HQ,01/06/2016,245000-Grants in Aid to NDPBs,RC999-Criminal Justice Group - OMS,YOUTH JUSTICE BOARD,11819,"8,958,000.00 ",Grant in Aid
Ministry of Justice,MoJ HQ,09/06/2016,263000-Other Contracted Out Services,RC999-Criminal Justice Group - OMS,G4S CARE & JUSTICE SERVICES (UK) LTD,2025823,"972,333.06 ",Medway - Operating secure training centre for young people in custody.
Ministry of Justice,MoJ HQ,09/06/2016,263000-Other Contracted Out Services,RC999-Criminal Justice Group - OMS,THE MANCHESTER COLLEGE,2025956,"316,810.00 ","Education to young people in Wetherby Young Offenders Institute, provided by The Manchester College."
Ministry of Justice,MoJ HQ,09/06/2016,263000-Other Contracted Out Services,RC999-Criminal Justice Group - OMS,THE MANCHESTER COLLEGE,2025956,"157,090.00 ","Education to young people in Werrington Young Offenders Institute, provided by The Manchester College."
Ministry of Justice,MoJ HQ,20/06/2016,263000-Other Contracted Out Services,RC999-Criminal Justice Group - OMS,STC (MILTON KEYNES) LTD,2026458,"1,746,467.28 ",Oakhill - Operating secure training centre for young people in custody.
Ministry of Justice,MoJ HQ,20/06/2016,263000-Other Contracted Out Services,RC999-Criminal Justice Group - OMS,STC (MILTON KEYNES) LTD,2026458,"1,690,703.74 ",Oakhill - Operating secure training centre for young people in custody. 
Ministry of Justice,MoJ HQ,23/06/2016,512000-Intangible GBV - Additions,RC999-Criminal Justice Group - OMS,CACI LTD,2026528,"181,906.80 ",Remaining milestone payment for  Asset Plus case management systems.
Ministry of Justice,MoJ HQ,23/06/2016,263000-Other Contracted Out Services,RC999-Criminal Justice Group - OMS,THE MANCHESTER COLLEGE,2026714,"633,620.00 ","Education to young people in Wetherby Young Offenders Institute, provided by The Manchester College."
Ministry of Justice,MoJ HQ,23/06/2016,263000-Other Contracted Out Services,RC999-Criminal Justice Group - OMS,THE MANCHESTER COLLEGE,2026714,"-316,810.00 ","Education to young people in Wetherby Young Offenders Institute, provided by The Manchester College."
Ministry of Justice,MoJ HQ,23/06/2016,263000-Other Contracted Out Services,RC999-Criminal Justice Group - OMS,THE MANCHESTER COLLEGE,2026714,"314,180.00 ","Education to young people in Werrington Young Offenders Institute, provided by The Manchester College."
Ministry of Justice,MoJ HQ,23/06/2016,263000-Other Contracted Out Services,RC999-Criminal Justice Group - OMS,THE MANCHESTER COLLEGE,2026714,"170,886.00 ","Education to young people in Cookham Wood Young Offenders Institute, provided by The Manchester College."
Ministry of Justice,MoJ HQ,23/06/2016,263000-Other Contracted Out Services,RC999-Criminal Justice Group - OMS,THE MANCHESTER COLLEGE,2026714,"170,886.00 ","Education to young people in Cookham Wood Young Offenders Institute, provided by The Manchester College."
Ministry of Justice,MoJ HQ,23/06/2016,263000-Other Contracted Out Services,RC999-Criminal Justice Group - OMS,THE MANCHESTER COLLEGE,2026714,"-157,090.00 ","Education to young people in Werrington Young Offenders Institute, provided by The Manchester College."
Ministry of Justice,MoJ HQ,27/06/2016,263000-Other Contracted Out Services,RC999-Criminal Justice Group - OMS,G4S CARE & JUSTICE SERVICES (UK) LTD,2026803,"963,532.08 ",Medway - Operating secure training centre for young people in custody.
Ministry of Justice,MoJ HQ,27/06/2016,263000-Other Contracted Out Services,RC999-Criminal Justice Group - OMS,PROSPECTS SERVICES LTD,2026867,"262,368.00 ","Education for young people in custody at Feltham Young Offenders Institute, provided by Prospects."
Ministry of Justice,MoJ HQ,30/06/2016,263000-Other Contracted Out Services,RC999-Criminal Justice Group - OMS,SERCO LTD,2027089,"147,740.79 ",Serco providing escorting services for young people in custody.
Ministry of Justice,MoJ HQ,30/06/2016,265000-IT & Telecommunications,LZ600-Transforming Justice,ATOS IT SERVICES UK LTD,2026918,890.82 ,Provision of IT Peripherals and individually ordered software and equipment
Ministry of Justice,MoJ HQ,30/06/2016,265000-IT & Telecommunications,"RD999-CJG - DGs Office, BDSU, Inspectorates & Ombudsman",ATOS IT SERVICES UK LTD,2026918,258.33 ,Provision of IT Peripherals and individually ordered software and equipment
Ministry of Justice,MoJ HQ,30/06/2016,265000-IT & Telecommunications,"RD999-CJG - DGs Office, BDSU, Inspectorates & Ombudsman",ATOS IT SERVICES UK LTD,2026918,258.33 ,Provision of IT Peripherals and individually ordered software and equipment
Ministry of Justice,MoJ HQ,30/06/2016,265000-IT & Telecommunications,"RD999-CJG - DGs Office, BDSU, Inspectorates & Ombudsman",ATOS IT SERVICES UK LTD,2026918,222.62 ,Provision of IT Peripherals and individually ordered software and equipment
Ministry of Justice,MoJ HQ,30/06/2016,265000-IT & Telecommunications,"RD999-CJG - DGs Office, BDSU, Inspectorates & Ombudsman",ATOS IT SERVICES UK LTD,2026918,164.00 ,Provision of IT Peripherals and individually ordered software and equipment
Ministry of Justice,MoJ HQ,30/06/2016,265000-IT & Telecommunications,"RD999-CJG - DGs Office, BDSU, Inspectorates & Ombudsman",ATOS IT SERVICES UK LTD,2026918,82.78 ,Provision of IT Peripherals and individually ordered software and equipment
Ministry of Justice,MoJ HQ,30/06/2016,265000-IT & Telecommunications,"RD999-CJG - DGs Office, BDSU, Inspectorates & Ombudsman",ATOS IT SERVICES UK LTD,2026918,69.75 ,Provision of IT Peripherals and individually ordered software and equipment
Ministry of Justice,MoJ HQ,30/06/2016,265000-IT & Telecommunications,"RD999-CJG - DGs Office, BDSU, Inspectorates & Ombudsman",ATOS IT SERVICES UK LTD,2026918,66.86 ,Provision of IT Peripherals and individually ordered software and equipment
Ministry of Justice,MoJ HQ,30/06/2016,265000-IT & Telecommunications,LZ600-Transforming Justice,ATOS IT SERVICES UK LTD,2026918,46.00 ,Provision of IT Peripherals and individually ordered software and equipment
Ministry of Justice,MoJ HQ,30/06/2016,265000-IT & Telecommunications,"RD999-CJG - DGs Office, BDSU, Inspectorates & Ombudsman",ATOS IT SERVICES UK LTD,2026918,46.00 ,Provision of IT Peripherals and individually ordered software and equipment
Ministry of Justice,MoJ HQ,30/06/2016,265000-IT & Telecommunications,RC999-Criminal Justice Group - OMS,ATOS IT SERVICES UK LTD,2026918,46.00 ,Provision of IT Peripherals and individually ordered software and equipment
Ministry of Justice,MoJ HQ,30/06/2016,265000-IT & Telecommunications,"RD999-CJG - DGs Office, BDSU, Inspectorates & Ombudsman",ATOS IT SERVICES UK LTD,2026918,43.43 ,Provision of IT Peripherals and individually ordered software and equipment
Ministry of Justice,MoJ HQ,30/06/2016,265000-IT & Telecommunications,LZ600-Transforming Justice,ATOS IT SERVICES UK LTD,2026918,25.95 ,Provision of IT Peripherals and individually ordered software and equipment
Ministry of Justice,MoJ HQ,30/06/2016,265000-IT & Telecommunications,QZ600-CPG Other,ATOS IT SERVICES UK LTD,2026918,25.78 ,Provision of IT Peripherals and individually ordered software and equipment
Ministry of Justice,MoJ HQ,30/06/2016,265000-IT & Telecommunications,QZ600-CPG Other,ATOS IT SERVICES UK LTD,2026918,25.78 ,Provision of IT Peripherals and individually ordered software and equipment
Ministry of Justice,MoJ HQ,30/06/2016,265000-IT & Telecommunications,"RD999-CJG - DGs Office, BDSU, Inspectorates & Ombudsman",ATOS IT SERVICES UK LTD,2026918,14.48 ,Provision of IT Peripherals and individually ordered software and equipment
Ministry of Justice,MoJ HQ,30/06/2016,265000-IT & Telecommunications,"RD999-CJG - DGs Office, BDSU, Inspectorates & Ombudsman",ATOS IT SERVICES UK LTD,2026918,11.62 ,Provision of IT Peripherals and individually ordered software and equipment
Ministry of Justice,MoJ HQ,30/06/2016,265000-IT & Telecommunications,LZ600-Transforming Justice,ATOS IT SERVICES UK LTD,2026918,9.75 ,Provision of IT Peripherals and individually ordered software and equipment
Ministry of Justice,MoJ HQ,30/06/2016,265000-IT & Telecommunications,"RD999-CJG - DGs Office, BDSU, Inspectorates & Ombudsman",ATOS IT SERVICES UK LTD,2026918,9.74 ,Provision of IT Peripherals and individually ordered software and equipment
Ministry of Justice,MoJ HQ,30/06/2016,265000-IT & Telecommunications,RB999-JPG - CJRD,ATOS IT SERVICES UK LTD,2026918,890.82 ,Provision of IT Peripherals and individually ordered software and equipment
Ministry of Justice,MoJ HQ,30/06/2016,265000-IT & Telecommunications,RB999-JPG - CJRD,ATOS IT SERVICES UK LTD,2026918,46.05 ,Provision of IT Peripherals and individually ordered software and equipment
Ministry of Justice,MoJ HQ,30/06/2016,265000-IT & Telecommunications,RB999-JPG - CJRD,ATOS IT SERVICES UK LTD,2026918,11.62 ,Provision of IT Peripherals and individually ordered software and equipment
Ministry of Justice,MoJ HQ,30/06/2016,265000-IT & Telecommunications,RB999-JPG - CJRD,ATOS IT SERVICES UK LTD,2026918,11.62 ,Provision of IT Peripherals and individually ordered software and equipment
Ministry of Justice,MoJ HQ,30/06/2016,265000-IT & Telecommunications,RB999-JPG - CJRD,ATOS IT SERVICES UK LTD,2026918,11.62 ,Provision of IT Peripherals and individually ordered software and equipment
Ministry of Justice,MoJ HQ,30/06/2016,265000-IT & Telecommunications,RB999-JPG - CJRD,ATOS IT SERVICES UK LTD,2026918,9.75 ,Provision of IT Peripherals and individually ordered software and equipment
Ministry of Justice,MoJ HQ,02/06/2016,263000-Other Contracted Out Services,LZ600-Transforming Justice,STAFFORDSHIRE COUNTY COUNCIL,2025546,"347,637.60 ","Staffordshire Council County continues to provide the Claims Management Regulation Compliance Office under contract to the MOJ.  Costs are recovered in full from fees charged to regulated businesses, so is cost revenue neutral to MOJ."
MoJ,MoJ,24/06/2016,TrackMyCrime Service maintenance costs,Victims Services,Home Office IT,11873,"70,200.00 ",Quarterly payment to the Home Office who in turn pay RKH (the suppliers of TrackMyCrime) for the hosting and maintenance of TrackMyCrime - an online service that allows victims to track the investigation of their case.
Ministry of Justice,MoJ HQ,30/06/2016,265000-IT & Telecommunications,RC999-Criminal Justice Group - OMS,ATOS IT SERVICES UK LTD,2026918,291.44 ,Provision of IT Peripherals and individually ordered software and equipment
Ministry of Justice,MoJ HQ,30/06/2016,265000-IT & Telecommunications,RG999-CFLAP Accumulator,ATOS IT SERVICES UK LTD,2026918,164.00 ,Provision of IT Peripherals and individually ordered software and equipment
Ministry of Justice,MoJ HQ,30/06/2016,265000-IT & Telecommunications,RJ999-JPG - International,ATOS IT SERVICES UK LTD,2026918,82.78 ,Provision of IT Peripherals and individually ordered software and equipment
Ministry of Justice,MoJ HQ,30/06/2016,265000-IT & Telecommunications,MF600-Directorate of Judicial Offices,ATOS IT SERVICES UK LTD,2026918,82.78 ,Provision of IT Peripherals and individually ordered software and equipment
Ministry of Justice,MoJ HQ,30/06/2016,265000-IT & Telecommunications,MF600-Directorate of Judicial Offices,ATOS IT SERVICES UK LTD,2026918,82.78 ,Provision of IT Peripherals and individually ordered software and equipment
Ministry of Justice,MoJ HQ,30/06/2016,265000-IT & Telecommunications,MF600-Directorate of Judicial Offices,ATOS IT SERVICES UK LTD,2026918,78.26 ,Provision of IT Peripherals and individually ordered software and equipment
Ministry of Justice,MoJ HQ,30/06/2016,265000-IT & Telecommunications,RZ500-Arms Length Bodies (JPG),ATOS IT SERVICES UK LTD,2026918,66.86 ,Provision of IT Peripherals and individually ordered software and equipment
Ministry of Justice,MoJ HQ,30/06/2016,265000-IT & Telecommunications,RZ500-Arms Length Bodies (JPG),ATOS IT SERVICES UK LTD,2026918,66.86 ,Provision of IT Peripherals and individually ordered software and equipment
Ministry of Justice,MoJ HQ,30/06/2016,265000-IT & Telecommunications,RZ500-Arms Length Bodies (JPG),ATOS IT SERVICES UK LTD,2026918,60.34 ,Provision of IT Peripherals and individually ordered software and equipment
Ministry of Justice,MoJ HQ,30/06/2016,265000-IT & Telecommunications,RC999-Criminal Justice Group - OMS,ATOS IT SERVICES UK LTD,2026918,46.00 ,Provision of IT Peripherals and individually ordered software and equipment
Ministry of Justice,MoJ HQ,30/06/2016,265000-IT & Telecommunications,MF600-Directorate of Judicial Offices,ATOS IT SERVICES UK LTD,2026918,46.00 ,Provision of IT Peripherals and individually ordered software and equipment
Ministry of Justice,MoJ HQ,30/06/2016,265000-IT & Telecommunications,RC999-Criminal Justice Group - OMS,ATOS IT SERVICES UK LTD,2026918,46.00 ,Provision of IT Peripherals and individually ordered software and equipment
Ministry of Justice,MoJ HQ,30/06/2016,265000-IT & Telecommunications,OZ501-HRD Feeder,ATOS IT SERVICES UK LTD,2026918,46.00 ,Provision of IT Peripherals and individually ordered software and equipment
Ministry of Justice,MoJ HQ,30/06/2016,265000-IT & Telecommunications,RC999-Criminal Justice Group - OMS,ATOS IT SERVICES UK LTD,2026918,46.00 ,Provision of IT Peripherals and individually ordered software and equipment
Ministry of Justice,MoJ HQ,30/06/2016,265000-IT & Telecommunications,OZ501-HRD Feeder,ATOS IT SERVICES UK LTD,2026918,28.84 ,Provision of IT Peripherals and individually ordered software and equipment
Ministry of Justice,MoJ HQ,30/06/2016,265000-IT & Telecommunications,MF600-Directorate of Judicial Offices,ATOS IT SERVICES UK LTD,2026918,25.78 ,Provision of IT Peripherals and individually ordered software and equipment
Ministry of Justice,MoJ HQ,30/06/2016,265000-IT & Telecommunications,RZ500-Arms Length Bodies (JPG),ATOS IT SERVICES UK LTD,2026918,25.78 ,Provision of IT Peripherals and individually ordered software and equipment
Ministry of Justice,MoJ HQ,30/06/2016,265000-IT & Telecommunications,RZ500-Arms Length Bodies (JPG),ATOS IT SERVICES UK LTD,2026918,25.78 ,Provision of IT Peripherals and individually ordered software and equipment
Ministry of Justice,MoJ HQ,30/06/2016,265000-IT & Telecommunications,MF600-Directorate of Judicial Offices,ATOS IT SERVICES UK LTD,2026918,25.78 ,Provision of IT Peripherals and individually ordered software and equipment
Ministry of Justice,MoJ HQ,30/06/2016,265000-IT & Telecommunications,LZ600-Transforming Justice,ATOS IT SERVICES UK LTD,2026918,25.78 ,Provision of IT Peripherals and individually ordered software and equipment
Ministry of Justice,MoJ HQ,30/06/2016,265000-IT & Telecommunications,RG999-CFLAP Accumulator,ATOS IT SERVICES UK LTD,2026918,25.78 ,Provision of IT Peripherals and individually ordered software and equipment
Ministry of Justice,MoJ HQ,30/06/2016,265000-IT & Telecommunications,RZ500-Arms Length Bodies (JPG),ATOS IT SERVICES UK LTD,2026918,25.78 ,Provision of IT Peripherals and individually ordered software and equipment
Ministry of Justice,MoJ HQ,30/06/2016,265000-IT & Telecommunications,MF600-Directorate of Judicial Offices,ATOS IT SERVICES UK LTD,2026918,25.23 ,Provision of IT Peripherals and individually ordered software and equipment
Ministry of Justice,MoJ HQ,30/06/2016,265000-IT & Telecommunications,MF600-Directorate of Judicial Offices,ATOS IT SERVICES UK LTD,2026918,25.23 ,Provision of IT Peripherals and individually ordered software and equipment
Ministry of Justice,MoJ HQ,30/06/2016,265000-IT & Telecommunications,OZ501-HRD Feeder,ATOS IT SERVICES UK LTD,2026918,18.33 ,Provision of IT Peripherals and individually ordered software and equipment
Ministry of Justice,MoJ HQ,30/06/2016,265000-IT & Telecommunications,OZ501-HRD Feeder,ATOS IT SERVICES UK LTD,2026918,11.62 ,Provision of IT Peripherals and individually ordered software and equipment
Ministry of Justice,MoJ HQ,30/06/2016,265000-IT & Telecommunications,MF600-Directorate of Judicial Offices,ATOS IT SERVICES UK LTD,2026918,11.17 ,Provision of IT Peripherals and individually ordered software and equipment
Ministry of Justice,MoJ HQ,30/06/2016,265000-IT & Telecommunications,RG999-CFLAP Accumulator,ATOS IT SERVICES UK LTD,2026918,11.17 ,Provision of IT Peripherals and individually ordered software and equipment
Ministry of Justice,MoJ HQ,30/06/2016,265000-IT & Telecommunications,OZ501-HRD Feeder,ATOS IT SERVICES UK LTD,2026918,9.74 ,Provision of IT Peripherals and individually ordered software and equipment
Ministry of Justice,MoJ HQ,16/06/2016,223000-Other Expenditure,OZ501-HRD Feeder,GOVERNMENT LEGAL DEPARTMENT,11838,"36,008.88 ",Payments to counsel for ongoing litigation
Ministry of Justice,MoJ HQ,16/06/2016,223000-Other Expenditure,OZ501-HRD Feeder,GOVERNMENT LEGAL DEPARTMENT,11838,"1,199.00 ",Payments to counsel for ongoing litigation 
Ministry of Justice,MoJ HQ,01/06/2016,245000-Grants in Aid to NDPBs,KY600-Access to Justice,CRIMINAL CASES REVIEW COMMISSION#KY14620043,11818,"444,000.00 ",Grant in Aid to CCRC
Ministry of Justice,MoJ HQ,01/06/2016,245000-Grants in Aid to NDPBs,RZ500-Arms Length Bodies (JPG),CAFCASS#RL10120028,11820,"8,848,000.00 ",Grant in Aid to CAFCASS 
Ministry of Justice,MoJ HQ,21/06/2016,223000-Other Expenditure,RG999-CFLAP Accumulator,GOVERNMENT LEGAL DEPARTMENT,11860,"37,500.00 ",Legal Aid Litigation Cost - Refund/Payment correction for duplicate payment received for litigation costs 
Ministry of Justice,MoJ HQ,24/06/2016,263000-Other Contracted Out Services,RG999-CFLAP Accumulator,CAFCASS,11869,"318,155.62 ",Court directed child contact interventions including the Seperated Parents Information Programme (SPIP) and Domestic Violence Perpetrator Programme (DVPP) services
Ministry of Justice,MoJ HQ,02/06/2016,226000-Court Costs,RG999-CFLAP Accumulator,DTI (WORDWAVE INTERNATIONAL LTD),2025478,"21,891.65 ",Transcription service for the Hillsborough inquests
Ministry of Justice,MoJ HQ,03/06/2016,610400-Debtors <1 year - Prepayments & Accrued Income,RG999-CFLAP Accumulator,WARRINGTON BOROUGH COUNCIL,2025572,"10,835.00 ",Costs in connection with the premises where the Hillsborough inquests were held
Ministry of Justice,MoJ HQ,03/06/2016,610400-Debtors <1 year - Prepayments & Accrued Income,RG999-CFLAP Accumulator,WARRINGTON BOROUGH COUNCIL,2025572,"10,831.00 ",Costs in connection with the premises where the Hillsborough inquests were held
Ministry of Justice,MoJ HQ,23/06/2016,610400-Debtors <1 year - Prepayments & Accrued Income,RG999-CFLAP Accumulator,WARRINGTON BOROUGH COUNCIL,2026743,"10,276.00 ",Costs in connection with the premises where the Hillsborough inquests were held
Ministry of Justice,MoJ HQ,03/06/2016,610400-Debtors <1 year - Prepayments & Accrued Income,RG999-CFLAP Accumulator,WARRINGTON BOROUGH COUNCIL,2025572,"10,275.00 ",Costs in connection with the premises where the Hillsborough inquests were held
Ministry of Justice,MoJ HQ,13/06/2016,246000-Current Grants,RG999-CFLAP Accumulator,REUNITE INTERNATIONAL,2026062,"29,000.00 ",2016-2017 grant funding for Reunite�s 24/7 advice line which deals with queries on the prevention of international parental child abduction
Ministry of Justice,MoJ HQ,16/06/2016,212001-Agency staff,NZ900-Finance & Corporate Services,AUTOMATION LOGIC LTD,2026120,"64,702.00 ",Contract to provide Wed Development and support resources to aid Digital Services - projects and Live services
Ministry of Justice,MoJ HQ,30/06/2016,265000-IT & Telecommunications,NZ900-Finance & Corporate Services,ARCUS GLOBAL LTD,2026915,"25,739.76 ",Contract to provide Hosting of Cloud Services for MoJ Digital Services 
Ministry of Justice,MoJ HQ,01/06/2016,223000-Other Expenditure,LZ600-Transforming Justice,CABINET OFFICE,11805,"40,000.00 ",Subscription for media monitoring services between 01/04/2016 - 31/03/2017
Ministry of Justice,MoJ HQ,06/06/2016,223000-Other Expenditure,LZ600-Transforming Justice,NLA MEDIA ACCESS LTD,2025669,"30,000.00 ",NLA licence to cover the reuse of media content between 01/04/2016 to 31/03/2017
Ministry of Justice,MoJ HQ,30/06/2016,265000-IT & Telecommunications,LZ600-Transforming Justice,ATOS IT SERVICES UK LTD,2026918,531.46 ,Provision of IT Peripherals and individually ordered software and equipment
Ministry of Justice,MoJ HQ,30/06/2016,265000-IT & Telecommunications,LZ600-Transforming Justice,ATOS IT SERVICES UK LTD,2026918,890.82 ,Provision of IT Peripherals and individually ordered software and equipment
Ministry of Justice,MoJ HQ,30/06/2016,265000-IT & Telecommunications,LZ600-Transforming Justice,ATOS IT SERVICES UK LTD,2026918,46.00 ,Provision of IT Peripherals and individually ordered software and equipment
Ministry of Justice,MoJ HQ,30/06/2016,265000-IT & Telecommunications,LZ600-Transforming Justice,ATOS IT SERVICES UK LTD,2026918,9.75 ,Provision of IT Peripherals and individually ordered software and equipment
Ministry of Justice,MoJ HQ,23/06/2016,223000-Other Expenditure,LZ600-Transforming Justice,TNT UK LTD,2026729,"81,608.80 ",Monthly storage and activity costs for paper records stored by TNT on MoJs behalf at its secure repositories.
Ministry of Justice,MoJ HQ,30/06/2016,265000-IT & Telecommunications,LZ600-Transforming Justice,ATOS IT SERVICES UK LTD,2026918,28.84 ,Provision of IT Peripherals and individually ordered software and equipment
Ministry of Justice,MoJ HQ,30/06/2016,265000-IT & Telecommunications,LZ600-Transforming Justice,ATOS IT SERVICES UK LTD,2026918,25.78 ,Provision of IT Peripherals and individually ordered software and equipment
Ministry of Justice,MoJ HQ,16/06/2016,222003-CIS Labour TFM Estates,NZ406-Strategic Estates Feeder,AMEY,2026115,"64,047.96 ",CIS Labour TFM Cleaning for April 2016
Ministry of Justice,MoJ HQ,16/06/2016,222003-CIS Labour TFM Estates,NZ406-Strategic Estates Feeder,AMEY,2026115,"46,972.81 ",CIS Labour TFM Building Maintenance (Mechanical & Electrical Maintenance) for April 2016
Ministry of Justice,MoJ HQ,16/06/2016,222003-CIS Labour TFM Estates,NZ406-Strategic Estates Feeder,AMEY,2026115,"22,071.60 ",CIS Labour TFM Management for April 2016
Ministry of Justice,MoJ HQ,16/06/2016,222003-CIS Labour TFM Estates,NZ406-Strategic Estates Feeder,AMEY,2026115,"12,786.06 ",CIS Labour TFM Building Maintenance (Internal Repair & Maintenance) for April 2016
Ministry of Justice,MoJ HQ,16/06/2016,222003-CIS Labour TFM Estates,NZ406-Strategic Estates Feeder,AMEY,2026115,"7,545.29 ",CIS Labour TFM Other Soft Services for April 2016
Ministry of Justice,MoJ HQ,16/06/2016,222003-CIS Labour TFM Estates,NZ406-Strategic Estates Feeder,AMEY,2026115,"5,247.02 ",CIS Labour TFM Waste Disposal for April 2016
Ministry of Justice,MoJ HQ,16/06/2016,222003-CIS Labour TFM Estates,NZ406-Strategic Estates Feeder,AMEY,2026115,360.89 ,CIS Labour TFM Pest and Vermin for April 2016
Ministry of Justice,MoJ HQ,16/06/2016,222003-CIS Labour TFM Estates,NZ406-Strategic Estates Feeder,AMEY,2026115,305.33 ,CIS Labour TFM Bottled Water/ Vending Machines for April 2016
Ministry of Justice,MoJ HQ,16/06/2016,222003-CIS Labour TFM Estates,NZ406-Strategic Estates Feeder,AMEY,2026115,209.67 ,CIS Labour TFM Grounds Maintenance for April 2016
Ministry of Justice,MoJ HQ,20/06/2016,222003-CIS Labour TFM Estates,NZ406-Strategic Estates Feeder,MITIE FACILITIES SERVICES LTD,2026413,"58,521.59 ",CIS Labour TFM Internal Moves for May 2016
Ministry of Justice,MoJ HQ,30/06/2016,265000-IT & Telecommunications,NZ406-Strategic Estates Feeder,ATOS IT SERVICES UK LTD,2026918,25.78 ,Provision of IT Peripherals and individually ordered software and equipment
Ministry of Justice,MoJ HQ,30/06/2016,265000-IT & Telecommunications,NZ406-Strategic Estates Feeder,ATOS IT SERVICES UK LTD,2026918,25.78 ,Provision of IT Peripherals and individually ordered software and equipment
Ministry of Justice,MoJ HQ,30/06/2016,265000-IT & Telecommunications,NZ406-Strategic Estates Feeder,ATOS IT SERVICES UK LTD,2026918,25.78 ,Provision of IT Peripherals and individually ordered software and equipment
Ministry of Justice,MoJ HQ,30/06/2016,265000-IT & Telecommunications,NZ406-Strategic Estates Feeder,ATOS IT SERVICES UK LTD,2026918,25.78 ,Provision of IT Peripherals and individually ordered software and equipment
Ministry of Justice,MoJ HQ,30/06/2016,222003-CIS Labour TFM Estates,NZ406-Strategic Estates Feeder,MITIE FACILITIES SERVICES LTD,2027042,"151,244.97 ",CIS Labour TFM Security for May 2016
Ministry of Justice,MoJ HQ,30/06/2016,222003-CIS Labour TFM Estates,NZ406-Strategic Estates Feeder,MITIE FACILITIES SERVICES LTD,2027042,"11,223.97 ",CIS Labour TFM Management for May 2016
Ministry of Justice,MoJ HQ,30/06/2016,222003-CIS Labour TFM Estates,NZ406-Strategic Estates Feeder,MITIE FACILITIES SERVICES LTD,2027042,4.77 ,CIS Labour TFM Waste Disposal for May 2016
Ministry of Justice,MoJ HQ,03/06/2016,610400-Debtors <1 year - Prepayments & Accrued Income,NZ406-Strategic Estates Feeder,BLABY DISTRICT COUNCIL,2025571,"2,611.50 ",Rates for Empriss House for April 2016
Ministry of Justice,MoJ HQ,03/06/2016,610400-Debtors <1 year - Prepayments & Accrued Income,NZ406-Strategic Estates Feeder,BLABY DISTRICT COUNCIL,2025571,"2,609.00 ",Rates for Empriss House for May 2016
Ministry of Justice,MoJ HQ,03/06/2016,610400-Debtors <1 year - Prepayments & Accrued Income,NZ406-Strategic Estates Feeder,BLABY DISTRICT COUNCIL,2025571,"2,609.00 ",Rates for Empriss House for June 2016
Ministry of Justice,MoJ HQ,06/06/2016,610400-Debtors <1 year - Prepayments & Accrued Income,NZ406-Strategic Estates Feeder,BLABY DISTRICT COUNCIL,2025582,"2,609.00 ",Rates for Empriss House for July 2016
Ministry of Justice,MoJ HQ,06/06/2016,610400-Debtors <1 year - Prepayments & Accrued Income,NZ406-Strategic Estates Feeder,BLABY DISTRICT COUNCIL,2025582,"2,609.00 ",Rates for Empriss House for August 2016
Ministry of Justice,MoJ HQ,06/06/2016,610400-Debtors <1 year - Prepayments & Accrued Income,NZ406-Strategic Estates Feeder,BLABY DISTRICT COUNCIL,2025582,"2,609.00 ",Rates for Empriss House for September 2016
Ministry of Justice,MoJ HQ,06/06/2016,610400-Debtors <1 year - Prepayments & Accrued Income,NZ406-Strategic Estates Feeder,BLABY DISTRICT COUNCIL,2025582,"2,609.00 ",Rates for Empriss House for October 2016
Ministry of Justice,MoJ HQ,06/06/2016,610400-Debtors <1 year - Prepayments & Accrued Income,NZ406-Strategic Estates Feeder,BLABY DISTRICT COUNCIL,2025582,"2,609.00 ",Rates for Empriss House for November 2016
Ministry of Justice,MoJ HQ,06/06/2016,610400-Debtors <1 year - Prepayments & Accrued Income,NZ406-Strategic Estates Feeder,BLABY DISTRICT COUNCIL,2025582,"2,609.00 ",Rates for Empriss House for December 2016
Ministry of Justice,MoJ HQ,06/06/2016,610400-Debtors <1 year - Prepayments & Accrued Income,NZ406-Strategic Estates Feeder,BLABY DISTRICT COUNCIL,2025582,"2,609.00 ",Rates for Empriss House for January 2017
Ministry of Justice,MoJ HQ,30/06/2016,265000-IT & Telecommunications,NZ406-Strategic Estates Feeder,ATOS IT SERVICES UK LTD,2026918,46.00 ,Provision of IT Peripherals and individually ordered software and equipment
Ministry of Justice,MoJ HQ,23/06/2016,261000-Fuel and Utilities,NZ406-Strategic Estates Feeder,EDF ENERGY LTD,2026569,"75,458.27 ",Electricity charges for 102 Petty France for the period 01/05/2016 - 31/05/2016.
Ministry of Justice,MoJ HQ,23/06/2016,261000-Fuel and Utilities,NZ406-Strategic Estates Feeder,EDF ENERGY LTD,2026569,"71,321.05 ",Electricity charges for 102 Petty France for the period 01/04/2016 - 30/04/2016.
Ministry of Justice,MoJ HQ,23/06/2016,221000-Property Rent and Rates,NZ406-Strategic Estates Feeder,LAND SECURITIES PROPERTIES LTD,2026615,"3,680,243.00 ",Rent for 102 Petty France for the period 25/03/2016 - 23/06/2016
Ministry of Justice,MoJ HQ,30/06/2016,265000-IT & Telecommunications,NZ406-Strategic Estates Feeder,ATOS IT SERVICES UK LTD,2026918,46.00 ,Provision of IT Peripherals and individually ordered software and equipment
Ministry of Justice,MoJ HQ,30/06/2016,265000-IT & Telecommunications,NZ406-Strategic Estates Feeder,ATOS IT SERVICES UK LTD,2026918,890.82 ,Provision of IT Peripherals and individually ordered software and equipment
Ministry of Justice,MoJ HQ,30/06/2016,265000-IT & Telecommunications,NZ406-Strategic Estates Feeder,ATOS IT SERVICES UK LTD,2026918,230.00 ,Provision of IT Peripherals and individually ordered software and equipment
Ministry of Justice,MoJ HQ,30/06/2016,265000-IT & Telecommunications,NZ406-Strategic Estates Feeder,ATOS IT SERVICES UK LTD,2026918,46.00 ,Provision of IT Peripherals and individually ordered software and equipment
Ministry of Justice,MoJ HQ,30/06/2016,265000-IT & Telecommunications,NZ406-Strategic Estates Feeder,ATOS IT SERVICES UK LTD,2026918,19.27 ,Provision of IT Peripherals and individually ordered software and equipment
Ministry of Justice,MoJ HQ,15/06/2016,261000-Fuel and Utilities,NZ406-Strategic Estates Feeder,DEPARTMENT OF ENERGY AND CLIMATE CHANGE#CRCFP22672,11837,"7,035,152.26 ",Carbon Reduction Credit Allowances purchased for the whole of the MoJ for 2016/17
Ministry of Justice,MoJ HQ,06/06/2016,265000-IT & Telecommunications,NZ406-Strategic Estates Feeder,XEROX (UK) LTD,2025718,"56,931.36 ",Print Room Contract for the MoJ HQ Estate for May 2016 and variable charges for April 2016 
Ministry of Justice,MoJ HQ,06/06/2016,265000-IT & Telecommunications,NZ406-Strategic Estates Feeder,XEROX (UK) LTD,2025718,"52,470.54 ",Print Room Contract for the MoJ HQ Estate for April 2016 and variable charges for March 2016 
Ministry of Justice,MoJ HQ,06/06/2016,265000-IT & Telecommunications,NZ406-Strategic Estates Feeder,XEROX (UK) LTD,2025718,"9,684.90 ",Print Room Contract for the MoJ HQ Estate for April 2016 and variable charges for March 2016 
Ministry of Justice,MoJ HQ,06/06/2016,265000-IT & Telecommunications,NZ406-Strategic Estates Feeder,XEROX (UK) LTD,2025718,"3,184.31 ",Print Room Contract for the MoJ HQ Estate for May 2016 and variable charges for April 2016 
Ministry of Justice,MoJ HQ,30/06/2016,265000-IT & Telecommunications,NZ406-Strategic Estates Feeder,XEROX (UK) LTD,2027137,"50,046.85 ",Print Room Contract for the MoJ HQ Estate for June 2016 and variable charges for May 2016 
Ministry of Justice,MoJ HQ,30/06/2016,265000-IT & Telecommunications,NZ406-Strategic Estates Feeder,XEROX (UK) LTD,2027137,"5,094.24 ",Print Room Contract for the MoJ HQ Estate for June 2016 and variable charges for May 2016 
Ministry of Justice,MoJ HQ,30/06/2016,265000-IT & Telecommunications,NZ406-Strategic Estates Feeder,ATOS IT SERVICES UK LTD,2026918,11.62 ,Provision of IT Peripherals and individually ordered software and equipment
Ministry of Justice,MoJ HQ,30/06/2016,265000-IT & Telecommunications,NZ406-Strategic Estates Feeder,ATOS IT SERVICES UK LTD,2026918,11.62 ,Provision of IT Peripherals and individually ordered software and equipment
Ministry of Justice,MoJ HQ,23/06/2016,610400-Debtors <1 year - Prepayments & Accrued Income,WW000-Balance Sheet,CITY OF WESTMINSTER,2026541,"616,264.00 ",Rates for 102 Petty France for May 2016.
Ministry of Justice,MoJ HQ,23/06/2016,610400-Debtors <1 year - Prepayments & Accrued Income,WW000-Balance Sheet,CITY OF WESTMINSTER,2026541,"131,835.00 ",Rates for Clive House for May 2016.
Ministry of Justice,MoJ HQ,02/06/2016,265000-IT & Telecommunications,NX900-MOJ Shared Services,ORACLE CORPORATION U K LTD,2025516,"33,095.35 ",Hardware Technical Support Service
Ministry of Justice,MoJ HQ,06/06/2016,265000-IT & Telecommunications,NX900-MOJ Shared Services,SSCL (SHARED SERVICES CONNECTED LTD),2025698,"55,780.70 ",Support for change requests
Ministry of Justice,MoJ HQ,16/06/2016,265000-IT & Telecommunications,NX900-MOJ Shared Services,CERTUS SOLUTIONS CONSULTING SERVICES LTD,2026139,"107,037.50 ",Arms Length Bodies (ALB) support for onboarding to Phoenix
Ministry of Justice,MoJ HQ,16/06/2016,265000-IT & Telecommunications,NX900-MOJ Shared Services,CERTUS SOLUTIONS CONSULTING SERVICES LTD,2026139,"89,362.50 ",Arms Length Bodies (ALB) support for onboarding to Phoenix
Ministry of Justice,MoJ HQ,16/06/2016,265000-IT & Telecommunications,NX900-MOJ Shared Services,HEWLETT PACKARD ENTERPRISE SERVICES UK LTD,2026181,"72,354.23 ",IT Maintenance
Ministry of Justice,MoJ HQ,23/06/2016,265000-IT & Telecommunications,NX900-MOJ Shared Services,CERTUS SOLUTIONS CONSULTING SERVICES LTD,2026535,"104,100.00 ",Data migration and testing services
Ministry of Justice,MoJ HQ,27/06/2016,263000-Other Contracted Out Services,NX900-MOJ Shared Services,SSCL (SHARED SERVICES CONNECTED LTD),2026878,"44,720.72 ",Employment security checks
Ministry of Justice,MoJ HQ,23/06/2016,263000-Other Contracted Out Services,NX900-MOJ Shared Services,SSCL (SHARED SERVICES CONNECTED LTD),2026706,"1,802,782.78 ",Service charges to Shared Services provider
Ministry of Justice,MoJ HQ,23/06/2016,263000-Other Contracted Out Services,NX900-MOJ Shared Services,SSCL (SHARED SERVICES CONNECTED LTD),2026706,"899,367.46 ",Service charges to Shared Services provider
Ministry of Justice,MoJ HQ,23/06/2016,263000-Other Contracted Out Services,NX900-MOJ Shared Services,SSCL (SHARED SERVICES CONNECTED LTD),2026706,"696,750.12 ",Service charges to Shared Services provider
Ministry of Justice,MoJ HQ,23/06/2016,263000-Other Contracted Out Services,NX900-MOJ Shared Services,SSCL (SHARED SERVICES CONNECTED LTD),2026706,"-464,500.08 ",Service charges to Shared Services provider
Ministry of Justice,MoJ HQ,23/06/2016,263000-Other Contracted Out Services,NX900-MOJ Shared Services,SSCL (SHARED SERVICES CONNECTED LTD),2026706,"266,840.28 ",Service charges to Shared Services provider
Ministry of Justice,MoJ HQ,23/06/2016,263000-Other Contracted Out Services,NX900-MOJ Shared Services,SSCL (SHARED SERVICES CONNECTED LTD),2026706,"-177,893.52 ",Service charges to Shared Services provider
Ministry of Justice,MoJ HQ,23/06/2016,263000-Other Contracted Out Services,NX900-MOJ Shared Services,SSCL (SHARED SERVICES CONNECTED LTD),2026706,"88,946.76 ",Service charges to Shared Services provider
Ministry of Justice,MoJ HQ,23/06/2016,263000-Other Contracted Out Services,NX900-MOJ Shared Services,SSCL (SHARED SERVICES CONNECTED LTD),2026706,"56,085.34 ",Service charges to Shared Services provider
Ministry of Justice,MoJ HQ,27/06/2016,263000-Other Contracted Out Services,NX900-MOJ Shared Services,SSCL (SHARED SERVICES CONNECTED LTD),2026878,"232,250.04 ",Service charges to Shared Services provider
Ministry of Justice,MoJ HQ,02/06/2016,224000-Staff travel and other,OZ501-HRD Feeder,XEXEC LTD,2025570,"30,010.38 ",Reward and Recognition voucher scheme. Costs are re-charged to business units
Ministry of Justice,MoJ HQ,02/06/2016,224000-Staff travel and other,OZ501-HRD Feeder,XEXEC LTD,2025570,"25,704.82 ",Reward and Recognition voucher scheme. Costs are re-charged to business units
Ministry of Justice,MoJ HQ,23/06/2016,265000-IT & Telecommunications,OZ501-HRD Feeder,SOPRA STERIA LTD,2026704,"34,773.00 ",Costs relating to attendnace management and work arounds for SOP (Single Operating Platform)
Ministry of Justice,MoJ HQ,30/06/2016,265000-IT & Telecommunications,OZ501-HRD Feeder,ATOS IT SERVICES UK LTD,2026918,890.82 ,Provision of IT Peripherals and individually ordered software and equipment
Ministry of Justice,MoJ HQ,30/06/2016,265000-IT & Telecommunications,OZ501-HRD Feeder,ATOS IT SERVICES UK LTD,2026918,46.00 ,Provision of IT Peripherals and individually ordered software and equipment
Ministry of Justice,MoJ HQ,30/06/2016,265000-IT & Telecommunications,OZ501-HRD Feeder,ATOS IT SERVICES UK LTD,2026918,11.62 ,Provision of IT Peripherals and individually ordered software and equipment
Ministry of Justice,MoJ HQ,30/06/2016,265000-IT & Telecommunications,OZ501-HRD Feeder,ATOS IT SERVICES UK LTD,2026918,11.62 ,Provision of IT Peripherals and individually ordered software and equipment
Ministry of Justice,MoJ HQ,30/06/2016,265000-IT & Telecommunications,OZ501-HRD Feeder,ATOS IT SERVICES UK LTD,2026918,9.75 ,Provision of IT Peripherals and individually ordered software and equipment
Ministry of Justice,MoJ HQ,27/06/2016,265000-IT & Telecommunications,OZ501-HRD Feeder,CERTUS SOLUTIONS CONSULTING SERVICES LTD,2026781,"63,750.00 ",On-going development and updates to the casework management system 
Ministry of Justice,MoJ HQ,30/06/2016,265000-IT & Telecommunications,OZ501-HRD Feeder,ATOS IT SERVICES UK LTD,2026918,93.93 ,Provision of IT Peripherals and individually ordered software and equipment
Ministry of Justice,MoJ HQ,09/06/2016,224000-Staff travel and other,OZ501-HRD Feeder,SKILLS FOR JUSTICE,2025943,"90,000.00 ",MoJ membership for Skills for Justice for 2016/17
Ministry of Justice,MoJ HQ,30/06/2016,265000-IT & Telecommunications,NZ900-Finance & Corporate Services,ATOS IT SERVICES UK LTD,2026918,164.00 ,Provision of IT Peripherals and individually ordered software and equipment
Ministry of Justice,MoJ HQ,02/06/2016,265000-IT & Telecommunications,NZ900-Finance & Corporate Services,ATOS IT SERVICES UK LTD,2025452,"161,375.63 ",ICT Hosting Services 
Ministry of Justice,MoJ HQ,02/06/2016,265000-IT & Telecommunications,NZ900-Finance & Corporate Services,ATOS IT SERVICES UK LTD,2025452,"76,236.17 ",ICT Other 
Ministry of Justice,MoJ HQ,02/06/2016,265000-IT & Telecommunications,NZ900-Finance & Corporate Services,ATOS IT SERVICES UK LTD,2025452,"70,940.63 ",ICT App Maintenance and Support 
Ministry of Justice,MoJ HQ,06/06/2016,265000-IT & Telecommunications,NZ900-Finance & Corporate Services,ATOS IT SERVICES UK LTD,2025574,"1,368,599.39 ",ICT Network Services 
Ministry of Justice,MoJ HQ,06/06/2016,265000-IT & Telecommunications,NZ900-Finance & Corporate Services,ATOS IT SERVICES UK LTD,2025574,"657,672.66 ",ICT Desktop activity.
Ministry of Justice,MoJ HQ,06/06/2016,265000-IT & Telecommunications,NZ900-Finance & Corporate Services,ATOS IT SERVICES UK LTD,2025574,"606,429.57 ",ICT Business As Usual Service Integration and Maintenance activity.
Ministry of Justice,MoJ HQ,06/06/2016,265000-IT & Telecommunications,NZ900-Finance & Corporate Services,ATOS IT SERVICES UK LTD,2025574,"155,580.00 ",ICT Laptop activity.
Ministry of Justice,MoJ HQ,06/06/2016,265000-IT & Telecommunications,NZ900-Finance & Corporate Services,ATOS IT SERVICES UK LTD,2025574,"70,289.19 ",ICT App Maintenance and Support 
Ministry of Justice,MoJ HQ,09/06/2016,265000-IT & Telecommunications,NZ900-Finance & Corporate Services,ATOS IT SERVICES UK LTD,2025761,"1,115,900.92 ",ICT Hosting 
Ministry of Justice,MoJ HQ,09/06/2016,265000-IT & Telecommunications,NZ900-Finance & Corporate Services,ATOS IT SERVICES UK LTD,2025761,"151,763.85 ",ICT Other 
Ministry of Justice,MoJ HQ,23/06/2016,265000-IT & Telecommunications,NZ900-Finance & Corporate Services,ATOS IT SERVICES UK LTD,2026503,"87,104.86 ",ICT Other 
Ministry of Justice,MoJ HQ,23/06/2016,265000-IT & Telecommunications,NZ900-Finance & Corporate Services,ATOS IT SERVICES UK LTD,2026503,"77,924.10 ",ICT App Maintenance and Support 
Ministry of Justice,MoJ HQ,23/06/2016,265000-IT & Telecommunications,NZ900-Finance & Corporate Services,ATOS IT SERVICES UK LTD,2026503,"70,940.63 ",ICT App Maintenance and Support 
Ministry of Justice,MoJ HQ,23/06/2016,265000-IT & Telecommunications,NZ900-Finance & Corporate Services,ATOS IT SERVICES UK LTD,2026503,"38,885.03 ",ICT App Maintenance and Support 
Ministry of Justice,MoJ HQ,30/06/2016,265000-IT & Telecommunications,NZ900-Finance & Corporate Services,ATOS IT SERVICES UK LTD,2026918,"1,589.73 ",Power down Request where attendance of on site engineer is required 
Ministry of Justice,MoJ HQ,30/06/2016,265000-IT & Telecommunications,NZ900-Finance & Corporate Services,ATOS IT SERVICES UK LTD,2026918,"1,589.73 ",Power down Request where attendance of on site engineer is required 
Ministry of Justice,MoJ HQ,30/06/2016,265000-IT & Telecommunications,NZ900-Finance & Corporate Services,ATOS IT SERVICES UK LTD,2026918,"1,589.73 ",Power down Request where attendance of on site engineer is required 
Ministry of Justice,MoJ HQ,30/06/2016,265000-IT & Telecommunications,NZ900-Finance & Corporate Services,ATOS IT SERVICES UK LTD,2026918,"1,398.30 ",Power down Request where attendance of on site engineer is required 
Ministry of Justice,MoJ HQ,30/06/2016,265000-IT & Telecommunications,NZ900-Finance & Corporate Services,ATOS IT SERVICES UK LTD,2026918,"1,398.30 ",Power down Request where attendance of on site engineer is required 
Ministry of Justice,MoJ HQ,30/06/2016,265000-IT & Telecommunications,NZ900-Finance & Corporate Services,ATOS IT SERVICES UK LTD,2026918,"1,398.30 ",Power down Request where attendance of on site engineer is required 
Ministry of Justice,MoJ HQ,30/06/2016,265000-IT & Telecommunications,NZ900-Finance & Corporate Services,ATOS IT SERVICES UK LTD,2026918,"1,398.30 ",Power down Request where attendance of on site engineer is required 
Ministry of Justice,MoJ HQ,30/06/2016,265000-IT & Telecommunications,NZ900-Finance & Corporate Services,ATOS IT SERVICES UK LTD,2026918,"1,398.30 ",Power down Request where attendance of on site engineer is required 
Ministry of Justice,MoJ HQ,30/06/2016,265000-IT & Telecommunications,NZ900-Finance & Corporate Services,ATOS IT SERVICES UK LTD,2026918,"1,398.30 ",Power down Request where attendance of on site engineer is required 
Ministry of Justice,MoJ HQ,30/06/2016,265000-IT & Telecommunications,NZ900-Finance & Corporate Services,ATOS IT SERVICES UK LTD,2026918,859.37 ,Provision of IT Peripherals and individually ordered software and equipment
Ministry of Justice,MoJ HQ,30/06/2016,265000-IT & Telecommunications,NZ900-Finance & Corporate Services,ATOS IT SERVICES UK LTD,2026918,859.37 ,Provision of IT Peripherals and individually ordered software and equipment
Ministry of Justice,MoJ HQ,30/06/2016,265000-IT & Telecommunications,NZ900-Finance & Corporate Services,ATOS IT SERVICES UK LTD,2026918,859.37 ,Provision of IT Peripherals and individually ordered software and equipment
Ministry of Justice,MoJ HQ,30/06/2016,265000-IT & Telecommunications,NZ900-Finance & Corporate Services,ATOS IT SERVICES UK LTD,2026918,859.37 ,Provision of IT Peripherals and individually ordered software and equipment
Ministry of Justice,MoJ HQ,30/06/2016,265000-IT & Telecommunications,NZ900-Finance & Corporate Services,ATOS IT SERVICES UK LTD,2026918,859.37 ,Provision of IT Peripherals and individually ordered software and equipment
Ministry of Justice,MoJ HQ,30/06/2016,265000-IT & Telecommunications,NZ900-Finance & Corporate Services,ATOS IT SERVICES UK LTD,2026918,859.37 ,Provision of IT Peripherals and individually ordered software and equipment
Ministry of Justice,MoJ HQ,30/06/2016,265000-IT & Telecommunications,NZ900-Finance & Corporate Services,ATOS IT SERVICES UK LTD,2026918,859.37 ,Provision of IT Peripherals and individually ordered software and equipment
Ministry of Justice,MoJ HQ,30/06/2016,265000-IT & Telecommunications,NZ900-Finance & Corporate Services,ATOS IT SERVICES UK LTD,2026918,859.37 ,Provision of IT Peripherals and individually ordered software and equipment
Ministry of Justice,MoJ HQ,30/06/2016,265000-IT & Telecommunications,NZ900-Finance & Corporate Services,ATOS IT SERVICES UK LTD,2026918,393.59 ,Provision of IT Peripherals and individually ordered software and equipment
Ministry of Justice,MoJ HQ,30/06/2016,265000-IT & Telecommunications,NZ900-Finance & Corporate Services,ATOS IT SERVICES UK LTD,2026918,168.02 ,Provision of IT Peripherals and individually ordered software and equipment
Ministry of Justice,MoJ HQ,30/06/2016,265000-IT & Telecommunications,NZ900-Finance & Corporate Services,ATOS IT SERVICES UK LTD,2026918,164.00 ,Provision of IT Peripherals and individually ordered software and equipment
Ministry of Justice,MoJ HQ,30/06/2016,265000-IT & Telecommunications,NZ900-Finance & Corporate Services,ATOS IT SERVICES UK LTD,2026918,164.00 ,Provision of IT Peripherals and individually ordered software and equipment
Ministry of Justice,MoJ HQ,30/06/2016,265000-IT & Telecommunications,NZ900-Finance & Corporate Services,ATOS IT SERVICES UK LTD,2026918,164.00 ,Provision of IT Peripherals and individually ordered software and equipment
Ministry of Justice,MoJ HQ,30/06/2016,265000-IT & Telecommunications,NZ900-Finance & Corporate Services,ATOS IT SERVICES UK LTD,2026918,164.00 ,Provision of IT Peripherals and individually ordered software and equipment
Ministry of Justice,MoJ HQ,30/06/2016,265000-IT & Telecommunications,NZ900-Finance & Corporate Services,ATOS IT SERVICES UK LTD,2026918,144.20 ,Provision of IT Peripherals and individually ordered software and equipment
Ministry of Justice,MoJ HQ,30/06/2016,265000-IT & Telecommunications,NZ900-Finance & Corporate Services,ATOS IT SERVICES UK LTD,2026918,83.96 ,Provision of IT Peripherals and individually ordered software and equipment
Ministry of Justice,MoJ HQ,30/06/2016,265000-IT & Telecommunications,NZ900-Finance & Corporate Services,ATOS IT SERVICES UK LTD,2026918,46.00 ,Provision of IT Peripherals and individually ordered software and equipment
Ministry of Justice,MoJ HQ,30/06/2016,265000-IT & Telecommunications,NZ900-Finance & Corporate Services,ATOS IT SERVICES UK LTD,2026918,45.76 ,Provision of IT Peripherals and individually ordered software and equipment
Ministry of Justice,MoJ HQ,30/06/2016,265000-IT & Telecommunications,NZ900-Finance & Corporate Services,ATOS IT SERVICES UK LTD,2026918,45.76 ,Provision of IT Peripherals and individually ordered software and equipment
Ministry of Justice,MoJ HQ,30/06/2016,265000-IT & Telecommunications,NZ900-Finance & Corporate Services,ATOS IT SERVICES UK LTD,2026918,18.33 ,Provision of IT Peripherals and individually ordered software and equipment
Ministry of Justice,MoJ HQ,30/06/2016,265000-IT & Telecommunications,NZ900-Finance & Corporate Services,ATOS IT SERVICES UK LTD,2026919,"1,352,544.31 ",ICT Network Services 
Ministry of Justice,MoJ HQ,30/06/2016,265000-IT & Telecommunications,NZ900-Finance & Corporate Services,ATOS IT SERVICES UK LTD,2026919,"1,138,607.52 ",ICT Hosting Services 
Ministry of Justice,MoJ HQ,30/06/2016,265000-IT & Telecommunications,NZ900-Finance & Corporate Services,ATOS IT SERVICES UK LTD,2026919,"657,987.52 ",ICT Desktop activity.
Ministry of Justice,MoJ HQ,30/06/2016,265000-IT & Telecommunications,NZ900-Finance & Corporate Services,ATOS IT SERVICES UK LTD,2026919,"574,922.57 ",ICT Business As Usual Service Integration and Maintenance activity.
Ministry of Justice,MoJ HQ,30/06/2016,265000-IT & Telecommunications,NZ900-Finance & Corporate Services,ATOS IT SERVICES UK LTD,2026919,"160,875.63 ",ICT Hosting Services 
Ministry of Justice,MoJ HQ,30/06/2016,265000-IT & Telecommunications,NZ900-Finance & Corporate Services,ATOS IT SERVICES UK LTD,2026919,"155,580.00 ",ICT Laptop activity.
Ministry of Justice,MoJ HQ,30/06/2016,265000-IT & Telecommunications,NZ900-Finance & Corporate Services,ATOS IT SERVICES UK LTD,2026919,"147,222.44 ",ICT Other 
Ministry of Justice,MoJ HQ,30/06/2016,265000-IT & Telecommunications,NZ900-Finance & Corporate Services,ATOS IT SERVICES UK LTD,2026919,"32,652.90 ",ICT Hosting Services 
Ministry of Justice,MoJ HQ,06/06/2016,265000-IT & Telecommunications,NZ900-Finance & Corporate Services,ATOS IT SERVICES UK LTD,2025574,"25,543.44 ",ICT Telephony Services
Ministry of Justice,MoJ HQ,06/06/2016,265000-IT & Telecommunications,NZ900-Finance & Corporate Services,CGI IT UK LTD,2025596,"402,178.00 ",Monthly CGI IT UK LTD costs for ICT Hosting
Ministry of Justice,MoJ HQ,09/06/2016,265000-IT & Telecommunications,NZ900-Finance & Corporate Services,CGI IT UK LTD,2025788,"2,292,747.00 ",Monthly CGI IT UK LTD costs for Application Maintenance and Support
Ministry of Justice,MoJ HQ,09/06/2016,265000-IT & Telecommunications,NZ900-Finance & Corporate Services,CGI IT UK LTD,2025788,"155,847.00 ",Monthly CGI IT UK LTD costs for Printing 
Ministry of Justice,MoJ HQ,09/06/2016,532000-Tangible GBV - Additions,NZ900-Finance & Corporate Services,CGI IT UK LTD,2025788,"40,950.00 ",Direct Matrix Architecture (DMX) Storage Replacement
Ministry of Justice,MoJ HQ,09/06/2016,265000-IT & Telecommunications,NZ900-Finance & Corporate Services,CGI IT UK LTD,2025788,"40,026.00 ",Monthly CGI IT UK LTD costs for ICT Hosting
Ministry of Justice,MoJ HQ,09/06/2016,265000-IT & Telecommunications,NZ900-Finance & Corporate Services,CGI IT UK LTD,2025788,"21,091.00 ",Monthly CGI IT UK LTD costs for Application Maintenance and Support
Ministry of Justice,MoJ HQ,23/06/2016,265000-IT & Telecommunications,NZ900-Finance & Corporate Services,CGI IT UK LTD,2026536,"25,060.00 ",Monthly CGI IT UK LTD costs for Application Maintenance and Support
Ministry of Justice,MoJ HQ,30/06/2016,532000-Tangible GBV - Additions,NZ900-Finance & Corporate Services,CGI IT UK LTD,2026948,"54,710.00 ",Direct Matrix Architecture (DMX) Storage Replacement
Ministry of Justice,MoJ HQ,06/06/2016,265000-IT & Telecommunications,NZ900-Finance & Corporate Services,ATOS IT SERVICES UK LTD,2025574,"309,129.00 ",End User Computing (EUC) Read-Only Memory (ROM) Preparation
Ministry of Justice,MoJ HQ,09/06/2016,265000-IT & Telecommunications,NZ900-Finance & Corporate Services,CAPITA BUSINESS SERVICES LTD,2025786,"169,328.40 ",Exit and Transition  services
Ministry of Justice,MoJ HQ,09/06/2016,265000-IT & Telecommunications,NZ900-Finance & Corporate Services,CAPITA BUSINESS SERVICES LTD,2025786,"146,694.00 ",Exit and Transition  services
Ministry of Justice,MoJ HQ,13/06/2016,265000-IT & Telecommunications,NZ900-Finance & Corporate Services,ATOS IT SERVICES UK LTD,2025984,"521,619.10 ",End User Computing (EUC) Proof-of Concept (POC) cost
Ministry of Justice,MoJ HQ,13/06/2016,265000-IT & Telecommunications,NZ900-Finance & Corporate Services,CAPITA BUSINESS SERVICES LTD,2025991,"147,525.60 ",Managed Programme/Project Management Office service to the Future IT Sourcing Programme
Ministry of Justice,MoJ HQ,16/06/2016,265000-IT & Telecommunications,NZ900-Finance & Corporate Services,ATOS IT SERVICES UK LTD,2026119,"90,313.85 ",Exit and Transition  costs
Ministry of Justice,MoJ HQ,16/06/2016,265000-IT & Telecommunications,NZ900-Finance & Corporate Services,ATOS IT SERVICES UK LTD,2026119,"88,184.86 ",Exit and Transition  costs
Ministry of Justice,MoJ HQ,23/06/2016,265000-IT & Telecommunications,NZ900-Finance & Corporate Services,6POINT6 LTD,2026485,"94,248.00 ",Technical Architecture Services relating to Technology Transformation Services 
Ministry of Justice,MoJ HQ,23/06/2016,265000-IT & Telecommunications,NZ900-Finance & Corporate Services,ATOS IT SERVICES UK LTD,2026503,"65,141.32 ",Support for new WAN Links to assist with Transition
Ministry of Justice,MoJ HQ,23/06/2016,265000-IT & Telecommunications,NZ900-Finance & Corporate Services,ATOS IT SERVICES UK LTD,2026503,"43,872.94 ",Support for new WAN Links to assist with Transition
Ministry of Justice,MoJ HQ,30/06/2016,265000-IT & Telecommunications,NZ900-Finance & Corporate Services,6POINT6 LTD,2026909,"94,248.00 ",Technical Architecture Services relating to Technology Transformation Services 
Ministry of Justice,MoJ HQ,30/06/2016,265000-IT & Telecommunications,NZ900-Finance & Corporate Services,ATOS IT SERVICES UK LTD,2026918,890.82 ,Provision of IT Peripherals and individually ordered software and equipment
Ministry of Justice,MoJ HQ,30/06/2016,265000-IT & Telecommunications,NZ900-Finance & Corporate Services,ATOS IT SERVICES UK LTD,2026918,890.82 ,Provision of IT Peripherals and individually ordered software and equipment
Ministry of Justice,MoJ HQ,30/06/2016,265000-IT & Telecommunications,NZ900-Finance & Corporate Services,ATOS IT SERVICES UK LTD,2026918,890.82 ,Provision of IT Peripherals and individually ordered software and equipment
Ministry of Justice,MoJ HQ,30/06/2016,265000-IT & Telecommunications,NZ900-Finance & Corporate Services,ATOS IT SERVICES UK LTD,2026918,890.82 ,Provision of IT Peripherals and individually ordered software and equipment
Ministry of Justice,MoJ HQ,30/06/2016,265000-IT & Telecommunications,NZ900-Finance & Corporate Services,ATOS IT SERVICES UK LTD,2026918,890.82 ,Provision of IT Peripherals and individually ordered software and equipment
Ministry of Justice,MoJ HQ,30/06/2016,265000-IT & Telecommunications,NZ900-Finance & Corporate Services,ATOS IT SERVICES UK LTD,2026918,890.82 ,Provision of IT Peripherals and individually ordered software and equipment
Ministry of Justice,MoJ HQ,30/06/2016,265000-IT & Telecommunications,NZ900-Finance & Corporate Services,ATOS IT SERVICES UK LTD,2026918,890.82 ,Provision of IT Peripherals and individually ordered software and equipment
Ministry of Justice,MoJ HQ,30/06/2016,265000-IT & Telecommunications,NZ900-Finance & Corporate Services,ATOS IT SERVICES UK LTD,2026918,890.82 ,Provision of IT Peripherals and individually ordered software and equipment
Ministry of Justice,MoJ HQ,30/06/2016,265000-IT & Telecommunications,NZ900-Finance & Corporate Services,ATOS IT SERVICES UK LTD,2026918,890.82 ,Provision of IT Peripherals and individually ordered software and equipment
Ministry of Justice,MoJ HQ,30/06/2016,265000-IT & Telecommunications,NZ900-Finance & Corporate Services,ATOS IT SERVICES UK LTD,2026918,890.82 ,Provision of IT Peripherals and individually ordered software and equipment
Ministry of Justice,MoJ HQ,30/06/2016,265000-IT & Telecommunications,NZ900-Finance & Corporate Services,ATOS IT SERVICES UK LTD,2026918,230.00 ,Provision of IT Peripherals and individually ordered software and equipment
Ministry of Justice,MoJ HQ,30/06/2016,265000-IT & Telecommunications,NZ900-Finance & Corporate Services,ATOS IT SERVICES UK LTD,2026918,138.00 ,Provision of IT Peripherals and individually ordered software and equipment
Ministry of Justice,MoJ HQ,30/06/2016,265000-IT & Telecommunications,NZ900-Finance & Corporate Services,ATOS IT SERVICES UK LTD,2026918,92.00 ,Provision of IT Peripherals and individually ordered software and equipment
Ministry of Justice,MoJ HQ,16/06/2016,265000-IT & Telecommunications,NZ900-Finance & Corporate Services,SOLIRIUS LTD,2026262,"50,400.00 ",Technical Architecture Services relating to LAA Future IT Sourcing Migration
Ministry of Justice,MoJ HQ,23/06/2016,265000-IT & Telecommunications,NZ900-Finance & Corporate Services,SOLIRIUS LTD,2026703,"126,000.00 ",Technical Architecture Services relating to LAA Future IT Sourcing Migration
Ministry of Justice,MoJ HQ,23/06/2016,265000-IT & Telecommunications,NZ900-Finance & Corporate Services,SOLIRIUS LTD,2026703,"-63,000.00 ",Technical Architecture Services relating to LAA Future IT Sourcing Migration
Ministry of Justice,MoJ HQ,30/06/2016,265000-IT & Telecommunications,NZ900-Finance & Corporate Services,SOLIRIUS LTD,2027095,"89,040.00 ",Technical Architecture Services relating to LAA Future IT Sourcing Migration
Ministry of Justice,MoJ HQ,30/06/2016,265000-IT & Telecommunications,NZ900-Finance & Corporate Services,SOLIRIUS LTD,2027095,"47,040.00 ",Technical Architecture Services relating to LAA Future IT Sourcing Migration
Ministry of Justice,MoJ HQ,30/06/2016,265000-IT & Telecommunications,NZ900-Finance & Corporate Services,SOLIRIUS LTD,2027095,"36,960.00 ",Technical Architecture Services relating to LAA Future IT Sourcing Migration
Ministry of Justice,MoJ HQ,27/06/2016,265000-IT & Telecommunications,NZ900-Finance & Corporate Services,ATOS IT SERVICES UK LTD,2026766,"8,292,224.74 ",End User Computing Transition - Internet Desktop Solution
Ministry of Justice,MoJ HQ,30/06/2016,265000-IT & Telecommunications,NZ900-Finance & Corporate Services,XEROX (UK) LTD,2027136,"829,999.74 ",Managed Print Services Costs in support of Technology Transformation Services 
Ministry of Justice,MoJ HQ,06/06/2016,265000-IT & Telecommunications,NZ900-Finance & Corporate Services,LOCKHEED MARTIN UK LTD,2025653,"758,828.93 ",Costs in respect of Future IT Sourcing Programme
Ministry of Justice,MoJ HQ,06/06/2016,265000-IT & Telecommunications,NZ900-Finance & Corporate Services,LOCKHEED MARTIN UK LTD,2025653,"436,136.45 ",Monthly Lockheed Martin costs for Service Integration and Maintenance charges
Ministry of Justice,MoJ HQ,06/06/2016,265000-IT & Telecommunications,NZ900-Finance & Corporate Services,LOCKHEED MARTIN UK LTD,2025653,"190,048.00 ",Monthly Lockheed Martin costs for Service Integration and Maintenance charges
Ministry of Justice,MoJ HQ,06/06/2016,265000-IT & Telecommunications,NZ900-Finance & Corporate Services,LOCKHEED MARTIN UK LTD,2025653,"119,358.22 ",Fixed charge Lockheed Martin costs for Service Integration and Maintenance
Ministry of Justice,MoJ HQ,09/06/2016,265000-IT & Telecommunications,NZ900-Finance & Corporate Services,LOCKHEED MARTIN UK LTD,2025857,"274,808.00 ",Monthly Lockheed Martin costs for Service Integration and Maintenance charges
Ministry of Justice,MoJ HQ,16/06/2016,265000-IT & Telecommunications,NZ900-Finance & Corporate Services,LOCKHEED MARTIN UK LTD,2026212,"768,952.24 ",Monthly Lockheed Martin costs for Service Integration and Maintenance charges
Ministry of Justice,MoJ HQ,16/06/2016,265000-IT & Telecommunications,NZ900-Finance & Corporate Services,LOCKHEED MARTIN UK LTD,2026212,"419,689.80 ",Monthly Lockheed Martin costs for Service Integration and Maintenance charges
Ministry of Justice,MoJ HQ,16/06/2016,265000-IT & Telecommunications,NZ900-Finance & Corporate Services,LOCKHEED MARTIN UK LTD,2026212,"190,048.00 ",Monthly Lockheed Martin costs for Service Integration and Maintenance charges
Ministry of Justice,MoJ HQ,16/06/2016,265000-IT & Telecommunications,NZ900-Finance & Corporate Services,LOCKHEED MARTIN UK LTD,2026212,"119,358.22 ",Fixed charge Lockheed Martin costs for Service Integration and Maintenance
Ministry of Justice,MoJ HQ,09/06/2016,265000-IT & Telecommunications,NZ900-Finance & Corporate Services,SELEX ES LTD,2025940,"30,000.00 ",Protective Monitoring  - FOMNI G Cloud monthly cost
Ministry of Justice,MoJ HQ,06/06/2016,265000-IT & Telecommunications,NZ900-Finance & Corporate Services,VODAFONE LTD (RETAIL),2025709,"500,556.21 ",Video & Voice Integration Fixed Charges April 2015 - March 2016.
Ministry of Justice,MoJ HQ,06/06/2016,265000-IT & Telecommunications,NZ900-Finance & Corporate Services,VODAFONE LTD (RETAIL),2025709,"117,675.56 ",Video & Voice Integration Fixed Charges April 2015 - March 2016.
Ministry of Justice,MoJ HQ,06/06/2016,265000-IT & Telecommunications,NZ900-Finance & Corporate Services,VODAFONE LTD (RETAIL),2025709,"90,237.52 ",Video & Voice Integration Fixed Charges April 2015 - March 2016.
Ministry of Justice,MoJ HQ,06/06/2016,265000-IT & Telecommunications,NZ900-Finance & Corporate Services,VODAFONE LTD (RETAIL),2025710,"150,820.21 ",Video & Voice Integration Variable Charges April 2015 - March 2016.
Ministry of Justice,MoJ HQ,13/06/2016,265000-IT & Telecommunications,NZ900-Finance & Corporate Services,ARK DATA CENTRES LTD,2025982,"211,678.46 ",Datacentre Costs 16/17
Ministry of Justice,MoJ HQ,06/06/2016,265000-IT & Telecommunications,NZ900-Finance & Corporate Services,XEROX (UK) LTD,2025718,"75,738.33 ", Future Offender Management National Infrastructure End User Computing print service charges
Ministry of Justice,MoJ HQ,02/06/2016,265000-IT & Telecommunications,NZ900-Finance & Corporate Services,VODAFONE LTD (RETAIL),2025560,"399,981.84 ",Wide Area network /Local Area Network Ongoing Charges 
Ministry of Justice,MoJ HQ,09/06/2016,265000-IT & Telecommunications,NZ900-Finance & Corporate Services,VODAFONE LTD (RETAIL),2025974,"926,202.62 ", Future Offender Management National Infrastructure Wide Area Network Service Charge 
Ministry of Justice,MoJ HQ,13/06/2016,265000-IT & Telecommunications,NZ900-Finance & Corporate Services,VODAFONE LTD (RETAIL),2026097,"205,788.06 ", Future Offender Management National Infrastructure Wide Area Network Service Charge 
Ministry of Justice,MoJ HQ,27/06/2016,265000-IT & Telecommunications,NZ900-Finance & Corporate Services,VODAFONE LTD (RETAIL),2026888,"119,232.81 ",Wide Area network /Local Area Network Fixed Charges 
Ministry of Justice,MoJ HQ,02/06/2016,265000-IT & Telecommunications,NZ900-Finance & Corporate Services,ATOS IT SERVICES UK LTD,2025452,"265,130.68 ",Future IT Sourcing Run and Maintain charges - April 2015 - March 2016
Ministry of Justice,MoJ HQ,16/06/2016,265000-IT & Telecommunications,NZ900-Finance & Corporate Services,TRUSTMARQUE SOLUTIONS LTD,2026283,"255,963.60 ",Cost of Service Management Licensing
Ministry of Justice,MoJ HQ,16/06/2016,265000-IT & Telecommunications,NZ900-Finance & Corporate Services,TRUSTMARQUE SOLUTIONS LTD,2026283,"97,396.80 ",Cost of Service Management Licensing
Ministry of Justice,MoJ HQ,30/06/2016,265000-IT & Telecommunications,NZ900-Finance & Corporate Services,MICROSOFT LTD,2027040,"231,199.20 ",Cost of Service Management Licensing
Ministry of Justice,MoJ HQ,06/06/2016,265000-IT & Telecommunications,NZ900-Finance & Corporate Services,TRUSTMARQUE SOLUTIONS LTD,2025708,"125,602.32 ",Cost of Service Management Licensing
Ministry of Justice,MoJ HQ,27/06/2016,265000-IT & Telecommunications,NZ900-Finance & Corporate Services,TRUSTMARQUE SOLUTIONS LTD,2026887,"6,035,066.08 ",Cost of Service Management Licensing
Ministry of Justice,MoJ HQ,27/06/2016,265000-IT & Telecommunications,NZ900-Finance & Corporate Services,TRUSTMARQUE SOLUTIONS LTD,2026887,"26,893.44 ",Cost of Service Management Licensing
Ministry of Justice,MoJ HQ,06/06/2016,265000-IT & Telecommunications,NZ900-Finance & Corporate Services,HEWLETT-PACKARD LTD,2025631,"268,331.99 ",Cost of Service Management Licensing
Ministry of Justice,MoJ HQ,20/06/2016,265000-IT & Telecommunications,NZ900-Finance & Corporate Services,HEWLETT PACKARD ENTERPRISE SERVICES UK LTD,2026391,"126,242.53 ",HP Monthly End User Computing service charges for NOMS
Ministry of Justice,MoJ HQ,27/06/2016,265000-IT & Telecommunications,NZ900-Finance & Corporate Services,HEWLETT PACKARD ENTERPRISE SERVICES UK LTD,2026813,"126,242.53 ",HP Monthly End User Computing service charges for NOMS
Ministry of Justice,MoJ HQ,27/06/2016,265000-IT & Telecommunications,NZ900-Finance & Corporate Services,HEWLETT PACKARD ENTERPRISE SERVICES UK LTD,2026813,"-117,083.35 ",HP Application Maintenance & support monthly service charges for NOMS
Ministry of Justice,MoJ HQ,27/06/2016,265000-IT & Telecommunications,NZ900-Finance & Corporate Services,HEWLETT PACKARD ENTERPRISE SERVICES UK LTD,2026813,"37,225.51 ",HP Application Maintenance & support monthly service charges for NOMS
Ministry of Justice,MoJ HQ,30/06/2016,265000-IT & Telecommunications,NZ900-Finance & Corporate Services,HEWLETT PACKARD ENTERPRISE SERVICES UK LTD,2027004,"1,277,598.40 ",HP Monthly End User Computing service charges for NOMS
Ministry of Justice,MoJ HQ,30/06/2016,265000-IT & Telecommunications,NZ900-Finance & Corporate Services,HEWLETT PACKARD ENTERPRISE SERVICES UK LTD,2027004,"1,137,421.52 ",HP Application Maintenance & support monthly service charges for NOMS
Ministry of Justice,MoJ HQ,30/06/2016,265000-IT & Telecommunications,NZ900-Finance & Corporate Services,HEWLETT PACKARD ENTERPRISE SERVICES UK LTD,2027004,"542,871.71 ",HP Monthly Hosting service charges for NOMS
Ministry of Justice,MoJ HQ,30/06/2016,265000-IT & Telecommunications,NZ900-Finance & Corporate Services,HEWLETT PACKARD ENTERPRISE SERVICES UK LTD,2027004,"358,967.40 ",HP Monthly General service charges for NOMS
Ministry of Justice,MoJ HQ,30/06/2016,265000-IT & Telecommunications,NZ900-Finance & Corporate Services,HEWLETT PACKARD ENTERPRISE SERVICES UK LTD,2027004,"355,473.46 ",HP Monthly Service Integration and Management service charges for NOMS
Ministry of Justice,MoJ HQ,30/06/2016,265000-IT & Telecommunications,NZ900-Finance & Corporate Services,HEWLETT PACKARD ENTERPRISE SERVICES UK LTD,2027004,"239,476.75 ",HP Monthly Service Integration and Management service charges for NOMS
Ministry of Justice,MoJ HQ,30/06/2016,265000-IT & Telecommunications,NZ900-Finance & Corporate Services,HEWLETT PACKARD ENTERPRISE SERVICES UK LTD,2027004,"206,695.67 ",HP Monthly Security service charges for NOMS
Ministry of Justice,MoJ HQ,30/06/2016,265000-IT & Telecommunications,NZ900-Finance & Corporate Services,HEWLETT PACKARD ENTERPRISE SERVICES UK LTD,2027004,"206,695.67 ",HP Monthly Security service charges for NOMS
Ministry of Justice,MoJ HQ,30/06/2016,265000-IT & Telecommunications,NZ900-Finance & Corporate Services,HEWLETT PACKARD ENTERPRISE SERVICES UK LTD,2027004,"174,449.67 ",Hosting service License charges for Ongoing IT Support Costs
Ministry of Justice,MoJ HQ,06/06/2016,265000-IT & Telecommunications,NZ900-Finance & Corporate Services,LOCKHEED MARTIN UK LTD,2025653,"114,917.89 ", Offender Management National Infrastructure Run & Maintain Non-Labour Charges
Ministry of Justice,MoJ HQ,06/06/2016,265000-IT & Telecommunications,NZ900-Finance & Corporate Services,LOCKHEED MARTIN UK LTD,2025653,"34,412.07 ", Future Offender Management National Infrastructure Connectivity to Skype 
Ministry of Justice,MoJ HQ,13/06/2016,265000-IT & Telecommunications,NZ900-Finance & Corporate Services,SOPRA STERIA LTD,2026074,"686,210.00 ", Offender Management National Infrastructure End User Computing
Ministry of Justice,MoJ HQ,13/06/2016,265000-IT & Telecommunications,NZ900-Finance & Corporate Services,SOPRA STERIA LTD,2026074,"686,210.00 ", Offender Management National Infrastructure End User Computing
Ministry of Justice,MoJ HQ,13/06/2016,265000-IT & Telecommunications,NZ900-Finance & Corporate Services,SOPRA STERIA LTD,2026074,"507,180.00 ", Offender Management National Infrastructure  - Datacentre 
Ministry of Justice,MoJ HQ,13/06/2016,265000-IT & Telecommunications,NZ900-Finance & Corporate Services,SOPRA STERIA LTD,2026074,"507,180.00 ", Offender Management National Infrastructure  - Datacentre 
Ministry of Justice,MoJ HQ,13/06/2016,265000-IT & Telecommunications,NZ900-Finance & Corporate Services,SOPRA STERIA LTD,2026074,"408,130.00 ", Offender Management National Infrastructure - Hosting 
Ministry of Justice,MoJ HQ,13/06/2016,265000-IT & Telecommunications,NZ900-Finance & Corporate Services,SOPRA STERIA LTD,2026074,"408,130.00 ", Offender Management National Infrastructure - Hosting 
Ministry of Justice,MoJ HQ,13/06/2016,265000-IT & Telecommunications,NZ900-Finance & Corporate Services,SOPRA STERIA LTD,2026074,"375,590.00 ", Offender Management National Infrastructure - Service Integration and Management 
Ministry of Justice,MoJ HQ,13/06/2016,265000-IT & Telecommunications,NZ900-Finance & Corporate Services,SOPRA STERIA LTD,2026074,"375,590.00 ", Offender Management National Infrastructure - Service Integration and Management 
Ministry of Justice,MoJ HQ,13/06/2016,265000-IT & Telecommunications,NZ900-Finance & Corporate Services,SOPRA STERIA LTD,2026074,"65,680.00 ", Offender Management National Infrastructure - Wide Area Network/Local Area Network 
Ministry of Justice,MoJ HQ,13/06/2016,265000-IT & Telecommunications,NZ900-Finance & Corporate Services,SOPRA STERIA LTD,2026074,"65,680.00 ", Offender Management National Infrastructure - Wide Area Network/Local Area Network 
Ministry of Justice,MoJ HQ,16/06/2016,265000-IT & Telecommunications,NZ900-Finance & Corporate Services,LOCKHEED MARTIN UK LTD,2026212,"122,699.10 ", Offender Management National Infrastructure Run & Maintain Non-Labour Charges
Ministry of Justice,MoJ HQ,27/06/2016,265000-IT & Telecommunications,NZ900-Finance & Corporate Services,LOCKHEED MARTIN UK LTD,2026826,"217,492.00 ", Offender Management National Infrastructure - Transforming Rehabilitation Programme charges
Ministry of Justice,MoJ HQ,27/06/2016,265000-IT & Telecommunications,NZ900-Finance & Corporate Services,SOPRA STERIA LTD,2026876,"310,100.00 ", Offender Management National Infrastructure  - nDelius 
Ministry of Justice,MoJ HQ,27/06/2016,265000-IT & Telecommunications,NZ900-Finance & Corporate Services,SOPRA STERIA LTD,2026876,"310,100.00 ", Offender Management National Infrastructure  - nDelius 
Ministry of Justice,MoJ HQ,27/06/2016,265000-IT & Telecommunications,NZ900-Finance & Corporate Services,SOPRA STERIA LTD,2026876,"70,398.81 ", Offender Management National Infrastructure -Variable Charges 
Ministry of Justice,MoJ HQ,23/06/2016,265000-IT & Telecommunications,NZ900-Finance & Corporate Services,HOME OFFICE,11868,"421,706.40 ",National Probations Service annual charge
Ministry of Justice,MoJ HQ,06/06/2016,265000-IT & Telecommunications,NZ900-Finance & Corporate Services,Q-SOLUTION LTD,2025686,"106,084.82 ",Criminal Justice Secure Exchange Ongoing Cost 
Ministry of Justice,MoJ HQ,09/06/2016,265000-IT & Telecommunications,NZ900-Finance & Corporate Services,FUJITSU SERVICES LTD,2025822,"153,839.28 ",Service Integration & Management Service Management
Ministry of Justice,MoJ HQ,09/06/2016,265000-IT & Telecommunications,NZ900-Finance & Corporate Services,FUJITSU SERVICES LTD,2025822,"46,935.57 ",Service Integration & Management Service Desk
Ministry of Justice,MoJ HQ,09/06/2016,265000-IT & Telecommunications,NZ900-Finance & Corporate Services,FUJITSU SERVICES LTD,2025822,"35,235.35 ",Service Integration & Management Security Management
Ministry of Justice,MoJ HQ,13/06/2016,265000-IT & Telecommunications,NZ900-Finance & Corporate Services,FUJITSU SERVICES LTD,2026012,"527,466.34 ",Service Integration & Management Operations
Ministry of Justice,MoJ HQ,13/06/2016,265000-IT & Telecommunications,NZ900-Finance & Corporate Services,FUJITSU SERVICES LTD,2026012,"45,207.40 ",Service Integration & Management Governance
Ministry of Justice,MoJ HQ,20/06/2016,265000-IT & Telecommunications,NZ900-Finance & Corporate Services,SOPRA STERIA LTD,2026456,"233,000.00 ",Criminal Justice Secure Exchange  Monthly Charge 
Ministry of Justice,MoJ HQ,30/06/2016,265000-IT & Telecommunications,NZ900-Finance & Corporate Services,FUJITSU SERVICES LTD,2026985,"153,839.28 ",Service Integration & Management Service Management
Ministry of Justice,MoJ HQ,30/06/2016,265000-IT & Telecommunications,NZ900-Finance & Corporate Services,FUJITSU SERVICES LTD,2026985,"46,935.57 ",Service Integration & Management Service Desk
Ministry of Justice,MoJ HQ,30/06/2016,265000-IT & Telecommunications,NZ900-Finance & Corporate Services,FUJITSU SERVICES LTD,2026985,"45,207.40 ",Service Integration & Management Governance
Ministry of Justice,MoJ HQ,30/06/2016,265000-IT & Telecommunications,NZ900-Finance & Corporate Services,FUJITSU SERVICES LTD,2026985,"35,235.35 ",Service Integration & Management Security Management
Ministry of Justice,MoJ HQ,30/06/2016,265000-IT & Telecommunications,NZ900-Finance & Corporate Services,FUJITSU SERVICES LTD,2026985,"26,607.47 ",Criminal Justice Secure Exchange  Business As Usual Charge 
Ministry of Justice,MoJ HQ,30/06/2016,265000-IT & Telecommunications,NZ900-Finance & Corporate Services,ATOS IT SERVICES UK LTD,2026918,312.12 ,Provision of IT Peripherals and individually ordered software and equipment
Ministry of Justice,MoJ HQ,30/06/2016,265000-IT & Telecommunications,NZ900-Finance & Corporate Services,ATOS IT SERVICES UK LTD,2026918,111.45 ,Provision of IT Peripherals and individually ordered software and equipment
Ministry of Justice,MoJ HQ,30/06/2016,265000-IT & Telecommunications,NZ900-Finance & Corporate Services,ATOS IT SERVICES UK LTD,2026918,77.34 ,Provision of IT Peripherals and individually ordered software and equipment
Ministry of Justice,MoJ HQ,30/06/2016,265000-IT & Telecommunications,NZ900-Finance & Corporate Services,ATOS IT SERVICES UK LTD,2026918,51.56 ,Provision of IT Peripherals and individually ordered software and equipment
Ministry of Justice,MoJ HQ,30/06/2016,265000-IT & Telecommunications,NZ900-Finance & Corporate Services,ATOS IT SERVICES UK LTD,2026918,46.00 ,Provision of IT Peripherals and individually ordered software and equipment
Ministry of Justice,MoJ HQ,30/06/2016,265000-IT & Telecommunications,NZ900-Finance & Corporate Services,ATOS IT SERVICES UK LTD,2026918,35.39 ,Provision of IT Peripherals and individually ordered software and equipment
Ministry of Justice,MoJ HQ,30/06/2016,265000-IT & Telecommunications,NZ900-Finance & Corporate Services,ATOS IT SERVICES UK LTD,2026918,28.84 ,Provision of IT Peripherals and individually ordered software and equipment
Ministry of Justice,MoJ HQ,30/06/2016,265000-IT & Telecommunications,NZ900-Finance & Corporate Services,ATOS IT SERVICES UK LTD,2026918,25.23 ,Provision of IT Peripherals and individually ordered software and equipment
Ministry of Justice,MoJ HQ,30/06/2016,265000-IT & Telecommunications,NZ900-Finance & Corporate Services,ATOS IT SERVICES UK LTD,2026918,25.23 ,Provision of IT Peripherals and individually ordered software and equipment
Ministry of Justice,MoJ HQ,30/06/2016,265000-IT & Telecommunications,NZ900-Finance & Corporate Services,ATOS IT SERVICES UK LTD,2026918,12.98 ,Provision of IT Peripherals and individually ordered software and equipment
Ministry of Justice,MoJ HQ,30/06/2016,265000-IT & Telecommunications,NZ900-Finance & Corporate Services,ATOS IT SERVICES UK LTD,2026918,12.98 ,Provision of IT Peripherals and individually ordered software and equipment
Ministry of Justice,MoJ HQ,30/06/2016,265000-IT & Telecommunications,NZ900-Finance & Corporate Services,ATOS IT SERVICES UK LTD,2026918,11.62 ,Provision of IT Peripherals and individually ordered software and equipment
Ministry of Justice,MoJ HQ,30/06/2016,265000-IT & Telecommunications,NZ900-Finance & Corporate Services,ATOS IT SERVICES UK LTD,2026918,11.62 ,Provision of IT Peripherals and individually ordered software and equipment
Ministry of Justice,MoJ HQ,30/06/2016,265000-IT & Telecommunications,NZ900-Finance & Corporate Services,ATOS IT SERVICES UK LTD,2026918,11.62 ,Provision of IT Peripherals and individually ordered software and equipment
Ministry of Justice,MoJ HQ,30/06/2016,265000-IT & Telecommunications,NZ900-Finance & Corporate Services,ATOS IT SERVICES UK LTD,2026918,11.62 ,Provision of IT Peripherals and individually ordered software and equipment
Ministry of Justice,MoJ HQ,30/06/2016,265000-IT & Telecommunications,NZ900-Finance & Corporate Services,ATOS IT SERVICES UK LTD,2026918,11.62 ,Provision of IT Peripherals and individually ordered software and equipment
Ministry of Justice,MoJ HQ,30/06/2016,265000-IT & Telecommunications,NZ900-Finance & Corporate Services,ATOS IT SERVICES UK LTD,2026918,11.62 ,Provision of IT Peripherals and individually ordered software and equipment
Ministry of Justice,MoJ HQ,30/06/2016,265000-IT & Telecommunications,NZ900-Finance & Corporate Services,ATOS IT SERVICES UK LTD,2026918,11.62 ,Provision of IT Peripherals and individually ordered software and equipment
Ministry of Justice,MoJ HQ,30/06/2016,265000-IT & Telecommunications,NZ900-Finance & Corporate Services,ATOS IT SERVICES UK LTD,2026918,11.62 ,Provision of IT Peripherals and individually ordered software and equipment
Ministry of Justice,MoJ HQ,30/06/2016,265000-IT & Telecommunications,NZ900-Finance & Corporate Services,ATOS IT SERVICES UK LTD,2026918,10.09 ,Provision of IT Peripherals and individually ordered software and equipment
Ministry of Justice,MoJ HQ,30/06/2016,265000-IT & Telecommunications,NZ900-Finance & Corporate Services,ATOS IT SERVICES UK LTD,2026918,9.75 ,Provision of IT Peripherals and individually ordered software and equipment
Ministry of Justice,MoJ HQ,30/06/2016,265000-IT & Telecommunications,NZ900-Finance & Corporate Services,ATOS IT SERVICES UK LTD,2026918,9.75 ,Provision of IT Peripherals and individually ordered software and equipment
Ministry of Justice,MoJ HQ,30/06/2016,265000-IT & Telecommunications,NZ900-Finance & Corporate Services,ATOS IT SERVICES UK LTD,2026918,9.75 ,Provision of IT Peripherals and individually ordered software and equipment
Ministry of Justice,MoJ HQ,30/06/2016,265000-IT & Telecommunications,NZ900-Finance & Corporate Services,ATOS IT SERVICES UK LTD,2026918,6.28 ,Provision of IT Peripherals and individually ordered software and equipment
Ministry of Justice,MoJ HQ,06/06/2016,265000-IT & Telecommunications,NZ900-Finance & Corporate Services,i2N LTD,2025636,"176,841.90 ",Youth Justice Board Contract Costs for Connectivity support
Ministry of Justice,MoJ HQ,06/06/2016,265000-IT & Telecommunications,NZ900-Finance & Corporate Services,i2N LTD,2025636,"37,082.38 ",Youth Justice Board Application Strategy Software Development
Ministry of Justice,MoJ HQ,06/06/2016,265000-IT & Telecommunications,NZ900-Finance & Corporate Services,i2N LTD,2025636,"23,835.63 ",Youth Justice Board Application Strategy Software Development
Ministry of Justice,MoJ HQ,13/06/2016,265000-IT & Telecommunications,NZ900-Finance & Corporate Services,i2N LTD,2026024,"30,028.55 ",Youth Justice Board Contract Costs for Connectivity support
Ministry of Justice,MoJ HQ,20/06/2016,265000-IT & Telecommunications,NZ900-Finance & Corporate Services,CACI LTD,2026350,"56,511.24 ",Youth Justice Board Provision of Hosting service 
Ministry of Justice,MoJ HQ,23/06/2016,265000-IT & Telecommunications,NZ900-Finance & Corporate Services,INFORMATION ASSURANCE CONSULTING SERVICES LLP(IACS),2026600,"41,800.00 ",Youth Justice Board Provision of Information Assurance Support service 
Ministry of Justice,MoJ HQ,23/06/2016,265000-IT & Telecommunications,NZ900-Finance & Corporate Services,INFORMATION ASSURANCE CONSULTING SERVICES LLP(IACS),2026600,"-20,900.00 ",Youth Justice Board Provision of Information Assurance Support service 
Ministry of Justice,MoJ HQ,27/06/2016,265000-IT & Telecommunications,NZ900-Finance & Corporate Services,INFORMATION ASSURANCE CONSULTING SERVICES LLP(IACS),2026818,"28,225.00 ",Youth Justice Board Provision of Accreditation Support Managed service 
Ministry of Justice,MoJ HQ,30/06/2016,265000-IT & Telecommunications,NZ900-Finance & Corporate Services,ATOS IT SERVICES UK LTD,2026918,116.08 ,Provision of IT Peripherals and individually ordered software and equipment
Ministry of Justice,MoJ HQ,30/06/2016,265000-IT & Telecommunications,NZ900-Finance & Corporate Services,ATOS IT SERVICES UK LTD,2026918,51.56 ,Provision of IT Peripherals and individually ordered software and equipment
Ministry of Justice,MoJ HQ,30/06/2016,265000-IT & Telecommunications,NZ900-Finance & Corporate Services,ATOS IT SERVICES UK LTD,2026918,25.78 ,Provision of IT Peripherals and individually ordered software and equipment
Ministry of Justice,MoJ HQ,30/06/2016,265000-IT & Telecommunications,NZ900-Finance & Corporate Services,ATOS IT SERVICES UK LTD,2026918,11.62 ,Provision of IT Peripherals and individually ordered software and equipment
Ministry of Justice,MoJ HQ,30/06/2016,265000-IT & Telecommunications,NZ900-Finance & Corporate Services,ATOS IT SERVICES UK LTD,2026918,9.75 ,Provision of IT Peripherals and individually ordered software and equipment
Ministry of Justice,MoJ HQ,30/06/2016,265000-IT & Telecommunications,NZ900-Finance & Corporate Services,ATOS IT SERVICES UK LTD,2026918,8.63 ,Provision of IT Peripherals and individually ordered software and equipment
Ministry of Justice,MoJ HQ,30/06/2016,265000-IT & Telecommunications,NZ900-Finance & Corporate Services,i2N LTD,2027014,"52,170.25 ",Youth Justice Board Application Strategy Software Development
Ministry of Justice,MoJ HQ,30/06/2016,265000-IT & Telecommunications,NZ900-Finance & Corporate Services,i2N LTD,2027014,"41,481.00 ",Youth Justice Board Application Strategy Software Development
Ministry of Justice,MoJ HQ,30/06/2016,265000-IT & Telecommunications,NZ900-Finance & Corporate Services,i2N LTD,2027014,"27,900.13 ",Youth Justice Board Application Strategy Software Development
Ministry of Justice,MoJ HQ,30/06/2016,265000-IT & Telecommunications,NZ900-Finance & Corporate Services,i2N LTD,2027014,"22,618.75 ",Youth Justice Board Application Strategy Software Development
Ministry of Justice,MoJ HQ,30/06/2016,265000-IT & Telecommunications,NZ900-Finance & Corporate Services,ATOS IT SERVICES UK LTD,2026918,103.12 ,Provision of IT Peripherals and individually ordered software and equipment
Ministry of Justice,MoJ HQ,30/06/2016,265000-IT & Telecommunications,NZ900-Finance & Corporate Services,ATOS IT SERVICES UK LTD,2026918,51.56 ,Provision of IT Peripherals and individually ordered software and equipment
Ministry of Justice,MoJ HQ,30/06/2016,265000-IT & Telecommunications,NZ900-Finance & Corporate Services,ATOS IT SERVICES UK LTD,2026918,25.78 ,Provision of IT Peripherals and individually ordered software and equipment
Ministry of Justice,MoJ HQ,09/06/2016,265000-IT & Telecommunications,NZ900-Finance & Corporate Services,BAE SYSTEMS APPLIED INTELLIGENCE LTD,2025762,"162,604.03 ",Information Assurance Managed Service charge
Ministry of Justice,MoJ HQ,30/06/2016,265000-IT & Telecommunications,NZ900-Finance & Corporate Services,ATOS IT SERVICES UK LTD,2026918,107.66 ,Provision of IT Peripherals and individually ordered software and equipment
Ministry of Justice,MoJ HQ,30/06/2016,265000-IT & Telecommunications,NZ900-Finance & Corporate Services,ATOS IT SERVICES UK LTD,2026918,51.56 ,Provision of IT Peripherals and individually ordered software and equipment
Ministry of Justice,MoJ HQ,30/06/2016,265000-IT & Telecommunications,NZ900-Finance & Corporate Services,ATOS IT SERVICES UK LTD,2026918,50.90 ,Provision of IT Peripherals and individually ordered software and equipment
Ministry of Justice,MoJ HQ,30/06/2016,265000-IT & Telecommunications,NZ900-Finance & Corporate Services,ATOS IT SERVICES UK LTD,2026918,46.00 ,Provision of IT Peripherals and individually ordered software and equipment
Ministry of Justice,MoJ HQ,30/06/2016,265000-IT & Telecommunications,NZ900-Finance & Corporate Services,ATOS IT SERVICES UK LTD,2026918,25.78 ,Provision of IT Peripherals and individually ordered software and equipment
Ministry of Justice,MoJ HQ,30/06/2016,265000-IT & Telecommunications,NZ900-Finance & Corporate Services,ATOS IT SERVICES UK LTD,2026918,25.78 ,Provision of IT Peripherals and individually ordered software and equipment
Ministry of Justice,MoJ HQ,01/06/2016,265000-IT & Telecommunications,NZ900-Finance & Corporate Services,HOME OFFICE IDENTITY & PASSPORT SERVICE,11817,"31,950.00 ",Document management system (TRIM) Replacement 
Ministry of Justice,MoJ HQ,02/06/2016,512000-Intangible GBV - Additions,NZ900-Finance & Corporate Services,HOME OFFICE,11823,"275,374.00 ",Common Platform Programme - Magistrate Court Rote 
Ministry of Justice,MoJ HQ,02/06/2016,512000-Intangible GBV - Additions,NZ900-Finance & Corporate Services,HOME OFFICE,11823,"-137,687.00 ",Common Platform Programme - Magistrate Court Rote 
Ministry of Justice,MoJ HQ,02/06/2016,512000-Intangible GBV - Additions,NZ900-Finance & Corporate Services,HOME OFFICE,11823,"33,800.00 ",Criminal Justice System Efficiency-Store
Ministry of Justice,MoJ HQ,02/06/2016,512000-Intangible GBV - Additions,NZ900-Finance & Corporate Services,HOME OFFICE,11823,"31,100.00 ",Criminal Justice System Efficiency-Store
Ministry of Justice,MoJ HQ,02/06/2016,512000-Intangible GBV - Additions,NZ900-Finance & Corporate Services,HOME OFFICE,11823,"18,600.00 ",Criminal Justice System Efficiency-Store
Ministry of Justice,MoJ HQ,02/06/2016,512000-Intangible GBV - Additions,NZ900-Finance & Corporate Services,HOME OFFICE,11823,"-15,550.00 ",Criminal Justice System Efficiency-Store
Ministry of Justice,MoJ HQ,02/06/2016,512000-Intangible GBV - Additions,NZ900-Finance & Corporate Services,HOME OFFICE,11823,"11,560.00 ",Criminal Justice System Efficiency-Store
Ministry of Justice,MoJ HQ,02/06/2016,512000-Intangible GBV - Additions,NZ900-Finance & Corporate Services,HOME OFFICE,11823,"-9,300.00 ",Criminal Justice System Efficiency-Store
Ministry of Justice,MoJ HQ,02/06/2016,265000-IT & Telecommunications,NZ900-Finance & Corporate Services,ATOS IT SERVICES UK LTD,2025452,"245,004.09 ",Technology  - Deployment managed Service 
Ministry of Justice,MoJ HQ,06/06/2016,532000-Tangible GBV - Additions,NZ900-Finance & Corporate Services,BT GLOBAL SERVICES,2025588,"70,361.48 ",Criminal Justice System Efficiency-Web
Ministry of Justice,MoJ HQ,06/06/2016,512000-Intangible GBV - Additions,NZ900-Finance & Corporate Services,CGI IT UK LTD,2025596,"104,723.61 ",The Way We Work project
Ministry of Justice,MoJ HQ,06/06/2016,512000-Intangible GBV - Additions,NZ900-Finance & Corporate Services,CGI IT UK LTD,2025597,"191,665.00 ",Common Platform Programme-Resulting
Ministry of Justice,MoJ HQ,06/06/2016,512000-Intangible GBV - Additions,NZ900-Finance & Corporate Services,CGI IT UK LTD,2025597,"63,888.00 ",Common Platform Programme-Resulting
Ministry of Justice,MoJ HQ,06/06/2016,512000-Intangible GBV - Additions,NZ900-Finance & Corporate Services,CGI IT UK LTD,2025597,"63,888.00 ",Common Platform Programme-Resulting
Ministry of Justice,MoJ HQ,06/06/2016,512000-Intangible GBV - Additions,NZ900-Finance & Corporate Services,VODAFONE LTD (RETAIL),2025709,"631,241.65 ",Criminal Justice System Efficiency-Crown In Court
Ministry of Justice,MoJ HQ,09/06/2016,265000-IT & Telecommunications,NZ900-Finance & Corporate Services,FUJITSU SERVICES LTD,2025822,"-36,015.32 ",Criminal Justice System Efficiency - Re-procurement 
Ministry of Justice,MoJ HQ,13/06/2016,512000-Intangible GBV - Additions,NZ900-Finance & Corporate Services,CGI IT UK LTD,2025995,"44,702.00 ",Common Platform Programme-Resulting
Ministry of Justice,MoJ HQ,16/06/2016,512000-Intangible GBV - Additions,NZ900-Finance & Corporate Services,KAINOS SOFTWARE LTD,2026199,"28,017.00 ",Common Platform Programme - LPaSS
Ministry of Justice,MoJ HQ,16/06/2016,512000-Intangible GBV - Additions,NZ900-Finance & Corporate Services,THOMSON REUTERS,2026278,"42,000.00 ",Court Electronic File
Ministry of Justice,MoJ HQ,20/06/2016,265000-IT & Telecommunications,NZ900-Finance & Corporate Services,SOPRA STERIA LTD,2026456,"144,000.00 ",Criminal Justice System Efficiency - Re-procurement 
Ministry of Justice,MoJ HQ,20/06/2016,512000-Intangible GBV - Additions,NZ900-Finance & Corporate Services,SOPRA STERIA LTD,2026456,"61,739.00 ",Common Platform Programme- Core Crime 
Ministry of Justice,MoJ HQ,20/06/2016,512000-Intangible GBV - Additions,NZ900-Finance & Corporate Services,SOPRA STERIA LTD,2026456,"26,440.00 ",Common Platform Programme-Defence
Ministry of Justice,MoJ HQ,20/06/2016,512000-Intangible GBV - Additions,NZ900-Finance & Corporate Services,SOPRA STERIA LTD,2026456,"24,040.00 ",Common Platform Programme-Transition Synchronisation
Ministry of Justice,MoJ HQ,20/06/2016,512000-Intangible GBV - Additions,NZ900-Finance & Corporate Services,SOPRA STERIA LTD,2026456,506.39 ,Common Platform Programme- Core Crime 
Ministry of Justice,MoJ HQ,23/06/2016,265000-IT & Telecommunications,NZ900-Finance & Corporate Services,ATOS IT SERVICES UK LTD,2026503,"48,321.00 ",The Way We Work project
Ministry of Justice,MoJ HQ,23/06/2016,265000-IT & Telecommunications,NZ900-Finance & Corporate Services,ATOS IT SERVICES UK LTD,2026503,"45,563.00 ",The Way We Work project
Ministry of Justice,MoJ HQ,23/06/2016,265000-IT & Telecommunications,NZ900-Finance & Corporate Services,ATOS IT SERVICES UK LTD,2026503,"27,495.00 ",The Way We Work project
Ministry of Justice,MoJ HQ,23/06/2016,512000-Intangible GBV - Additions,NZ900-Finance & Corporate Services,CAPGEMINI UK PLC,2026531,"38,369.00 ",Common Platform Programme - Archive Data 
Ministry of Justice,MoJ HQ,23/06/2016,512000-Intangible GBV - Additions,NZ900-Finance & Corporate Services,CAPGEMINI UK PLC,2026531,"-25,280.00 ",Common Platform Programme - Programme 
Ministry of Justice,MoJ HQ,23/06/2016,265000-IT & Telecommunications,NZ900-Finance & Corporate Services,CGI IT UK LTD,2026536,"104,665.00 ",Document management system (TRIM) Replacement 
Ministry of Justice,MoJ HQ,23/06/2016,512000-Intangible GBV - Additions,NZ900-Finance & Corporate Services,KAINOS SOFTWARE LTD,2026608,"191,705.00 ",Common Platform Programme - Automated Track Case Management
Ministry of Justice,MoJ HQ,23/06/2016,265000-IT & Telecommunications,NZ900-Finance & Corporate Services,TRIAD GROUP PLC,2026731,"165,654.60 ",Common Platform Programme-Resulting
Ministry of Justice,MoJ HQ,27/06/2016,512000-Intangible GBV - Additions,NZ900-Finance & Corporate Services,CAPGEMINI UK PLC,2026779,"50,592.00 ",Common Platform Programme - Info Quality + Collaboration 
Ministry of Justice,MoJ HQ,27/06/2016,512000-Intangible GBV - Additions,NZ900-Finance & Corporate Services,HOME OFFICE,2026814,"33,429.62 ",Common Platform Programme-Resulting
Ministry of Justice,MoJ HQ,30/06/2016,512000-Intangible GBV - Additions,NZ900-Finance & Corporate Services,AGILESPHERE LLP,2026910,"39,104.38 ",Common Platform Programme - Archive Data 
Ministry of Justice,MoJ HQ,30/06/2016,265000-IT & Telecommunications,NZ900-Finance & Corporate Services,ATOS IT SERVICES UK LTD,2026918,"202,449.50 ",Technology  - Deployment managed Service 
Ministry of Justice,MoJ HQ,30/06/2016,512000-Intangible GBV - Additions,NZ900-Finance & Corporate Services,ATOS IT SERVICES UK LTD,2026918,"199,724.00 ",The Way We Work - RAS Solution 
Ministry of Justice,MoJ HQ,30/06/2016,265000-IT & Telecommunications,NZ900-Finance & Corporate Services,ATOS IT SERVICES UK LTD,2026919,"67,337.18 ",The Way We Work project
Ministry of Justice,MoJ HQ,30/06/2016,265000-IT & Telecommunications,NZ900-Finance & Corporate Services,CGI IT UK LTD,2026948,"194,378.00 ",Document management system (TRIM) Replacement 
Ministry of Justice,MoJ HQ,30/06/2016,532000-Tangible GBV - Additions,NZ900-Finance & Corporate Services,G4S FACILITIES MANAGEMENT (UK) LTD,2026986,"33,927.76 ",Criminal Justice System Efficiency-Web
Ministry of Justice,MoJ HQ,30/06/2016,512000-Intangible GBV - Additions,NZ900-Finance & Corporate Services,VERIZON UK LTD,2027122,"126,218.80 ",Common Platform Programme - Jury Man. Service  
Ministry of Justice,MoJ HQ,30/06/2016,512000-Intangible GBV - Additions,NZ900-Finance & Corporate Services,VERIZON UK LTD,2027122,"80,932.71 ",Common Platform Programme - Jury Man. Service  
Ministry of Justice,MoJ HQ,30/06/2016,512000-Intangible GBV - Additions,NZ900-Finance & Corporate Services,VERIZON UK LTD,2027122,"34,891.27 ",Common Platform Programme - Jury Man. Service  
Ministry of Justice,MoJ HQ,30/06/2016,265000-IT & Telecommunications,NZ900-Finance & Corporate Services,EVERYTHING EVERYWHERE LTD,2027140,"657,000.00 ",The Way We Work project
Ministry of Justice,MoJ HQ,30/06/2016,265000-IT & Telecommunications,NZ900-Finance & Corporate Services,EVERYTHING EVERYWHERE LTD,2027140,"-525,600.00 ",The Way We Work project
Ministry of Justice,MoJ HQ,30/06/2016,265000-IT & Telecommunications,NZ900-Finance & Corporate Services,EVERYTHING EVERYWHERE LTD,2027140,"-262,800.00 ",The Way We Work project
Ministry of Justice,MoJ HQ,30/06/2016,265000-IT & Telecommunications,NZ900-Finance & Corporate Services,EVERYTHING EVERYWHERE LTD,2027140,"131,400.00 ",The Way We Work project
Ministry of Justice,MoJ HQ,03/06/2016,512000-Intangible GBV - Additions,NZ900-Finance & Corporate Services,HOME OFFICE,11825,"79,256.94 ",NOMS Strategic Partner Gateway
Ministry of Justice,MoJ HQ,06/06/2016,532000-Tangible GBV - Additions,NZ900-Finance & Corporate Services,HEWLETT PACKARD ENTERPRISE SERVICES UK LTD,2025630,"119,267.24 ",NOMS Prison Monitors
Ministry of Justice,MoJ HQ,30/06/2016,265000-IT & Telecommunications,NZ900-Finance & Corporate Services,ATOS IT SERVICES UK LTD,2026918,11.62 ,Provision of IT Peripherals and individually ordered software and equipment
Ministry of Justice,MoJ HQ,30/06/2016,265000-IT & Telecommunications,NZ900-Finance & Corporate Services,ATOS IT SERVICES UK LTD,2026918,11.62 ,Provision of IT Peripherals and individually ordered software and equipment
Ministry of Justice,MoJ HQ,30/06/2016,265000-IT & Telecommunications,NZ900-Finance & Corporate Services,ATOS IT SERVICES UK LTD,2026918,11.62 ,Provision of IT Peripherals and individually ordered software and equipment
Ministry of Justice,MoJ HQ,30/06/2016,265000-IT & Telecommunications,NZ900-Finance & Corporate Services,ATOS IT SERVICES UK LTD,2026918,890.82 ,Provision of IT Peripherals and individually ordered software and equipment
Ministry of Justice,MoJ HQ,30/06/2016,265000-IT & Telecommunications,NZ900-Finance & Corporate Services,ATOS IT SERVICES UK LTD,2026918,890.82 ,Provision of IT Peripherals and individually ordered software and equipment
Ministry of Justice,MoJ HQ,30/06/2016,265000-IT & Telecommunications,NZ900-Finance & Corporate Services,ATOS IT SERVICES UK LTD,2026918,890.82 ,Provision of IT Peripherals and individually ordered software and equipment
Ministry of Justice,MoJ HQ,30/06/2016,265000-IT & Telecommunications,NZ900-Finance & Corporate Services,ATOS IT SERVICES UK LTD,2026918,724.08 ,Provision of IT Peripherals and individually ordered software and equipment
Ministry of Justice,MoJ HQ,30/06/2016,265000-IT & Telecommunications,NZ900-Finance & Corporate Services,ATOS IT SERVICES UK LTD,2026918,687.96 ,Provision of IT Peripherals and individually ordered software and equipment
Ministry of Justice,MoJ HQ,30/06/2016,265000-IT & Telecommunications,NZ900-Finance & Corporate Services,ATOS IT SERVICES UK LTD,2026918,515.60 ,Provision of IT Peripherals and individually ordered software and equipment
Ministry of Justice,MoJ HQ,30/06/2016,265000-IT & Telecommunications,NZ900-Finance & Corporate Services,ATOS IT SERVICES UK LTD,2026918,381.33 ,Provision of IT Peripherals and individually ordered software and equipment
Ministry of Justice,MoJ HQ,30/06/2016,265000-IT & Telecommunications,NZ900-Finance & Corporate Services,ATOS IT SERVICES UK LTD,2026918,321.15 ,Provision of IT Peripherals and individually ordered software and equipment
Ministry of Justice,MoJ HQ,30/06/2016,265000-IT & Telecommunications,NZ900-Finance & Corporate Services,ATOS IT SERVICES UK LTD,2026918,309.36 ,Provision of IT Peripherals and individually ordered software and equipment
Ministry of Justice,MoJ HQ,30/06/2016,265000-IT & Telecommunications,NZ900-Finance & Corporate Services,ATOS IT SERVICES UK LTD,2026918,199.38 ,Provision of IT Peripherals and individually ordered software and equipment
Ministry of Justice,MoJ HQ,30/06/2016,265000-IT & Telecommunications,NZ900-Finance & Corporate Services,ATOS IT SERVICES UK LTD,2026918,196.94 ,Provision of IT Peripherals and individually ordered software and equipment
Ministry of Justice,MoJ HQ,30/06/2016,265000-IT & Telecommunications,NZ900-Finance & Corporate Services,ATOS IT SERVICES UK LTD,2026918,168.02 ,Provision of IT Peripherals and individually ordered software and equipment
Ministry of Justice,MoJ HQ,30/06/2016,265000-IT & Telecommunications,NZ900-Finance & Corporate Services,ATOS IT SERVICES UK LTD,2026918,164.00 ,Provision of IT Peripherals and individually ordered software and equipment
Ministry of Justice,MoJ HQ,30/06/2016,265000-IT & Telecommunications,NZ900-Finance & Corporate Services,ATOS IT SERVICES UK LTD,2026918,164.00 ,Provision of IT Peripherals and individually ordered software and equipment
Ministry of Justice,MoJ HQ,30/06/2016,265000-IT & Telecommunications,NZ900-Finance & Corporate Services,ATOS IT SERVICES UK LTD,2026918,159.60 ,Provision of IT Peripherals and individually ordered software and equipment
Ministry of Justice,MoJ HQ,30/06/2016,265000-IT & Telecommunications,NZ900-Finance & Corporate Services,ATOS IT SERVICES UK LTD,2026918,129.75 ,Provision of IT Peripherals and individually ordered software and equipment
Ministry of Justice,MoJ HQ,30/06/2016,265000-IT & Telecommunications,NZ900-Finance & Corporate Services,ATOS IT SERVICES UK LTD,2026918,86.75 ,Provision of IT Peripherals and individually ordered software and equipment
Ministry of Justice,MoJ HQ,30/06/2016,265000-IT & Telecommunications,NZ900-Finance & Corporate Services,ATOS IT SERVICES UK LTD,2026918,85.74 ,Provision of IT Peripherals and individually ordered software and equipment
Ministry of Justice,MoJ HQ,30/06/2016,265000-IT & Telecommunications,NZ900-Finance & Corporate Services,ATOS IT SERVICES UK LTD,2026918,83.96 ,Provision of IT Peripherals and individually ordered software and equipment
Ministry of Justice,MoJ HQ,30/06/2016,265000-IT & Telecommunications,NZ900-Finance & Corporate Services,ATOS IT SERVICES UK LTD,2026918,82.78 ,Provision of IT Peripherals and individually ordered software and equipment
Ministry of Justice,MoJ HQ,30/06/2016,265000-IT & Telecommunications,NZ900-Finance & Corporate Services,ATOS IT SERVICES UK LTD,2026918,82.78 ,Provision of IT Peripherals and individually ordered software and equipment
Ministry of Justice,MoJ HQ,30/06/2016,265000-IT & Telecommunications,NZ900-Finance & Corporate Services,ATOS IT SERVICES UK LTD,2026918,77.34 ,Provision of IT Peripherals and individually ordered software and equipment
Ministry of Justice,MoJ HQ,30/06/2016,265000-IT & Telecommunications,NZ900-Finance & Corporate Services,ATOS IT SERVICES UK LTD,2026918,66.86 ,Provision of IT Peripherals and individually ordered software and equipment
Ministry of Justice,MoJ HQ,30/06/2016,265000-IT & Telecommunications,NZ900-Finance & Corporate Services,ATOS IT SERVICES UK LTD,2026918,60.34 ,Provision of IT Peripherals and individually ordered software and equipment
Ministry of Justice,MoJ HQ,30/06/2016,265000-IT & Telecommunications,NZ900-Finance & Corporate Services,ATOS IT SERVICES UK LTD,2026918,51.78 ,Provision of IT Peripherals and individually ordered software and equipment
Ministry of Justice,MoJ HQ,30/06/2016,265000-IT & Telecommunications,NZ900-Finance & Corporate Services,ATOS IT SERVICES UK LTD,2026918,51.56 ,Provision of IT Peripherals and individually ordered software and equipment
Ministry of Justice,MoJ HQ,30/06/2016,265000-IT & Telecommunications,NZ900-Finance & Corporate Services,ATOS IT SERVICES UK LTD,2026918,51.56 ,Provision of IT Peripherals and individually ordered software and equipment
Ministry of Justice,MoJ HQ,30/06/2016,265000-IT & Telecommunications,NZ900-Finance & Corporate Services,ATOS IT SERVICES UK LTD,2026918,51.56 ,Provision of IT Peripherals and individually ordered software and equipment
Ministry of Justice,MoJ HQ,30/06/2016,265000-IT & Telecommunications,NZ900-Finance & Corporate Services,ATOS IT SERVICES UK LTD,2026918,46.00 ,Provision of IT Peripherals and individually ordered software and equipment
Ministry of Justice,MoJ HQ,30/06/2016,265000-IT & Telecommunications,NZ900-Finance & Corporate Services,ATOS IT SERVICES UK LTD,2026918,46.00 ,Provision of IT Peripherals and individually ordered software and equipment
Ministry of Justice,MoJ HQ,30/06/2016,265000-IT & Telecommunications,NZ900-Finance & Corporate Services,ATOS IT SERVICES UK LTD,2026918,46.00 ,Provision of IT Peripherals and individually ordered software and equipment
Ministry of Justice,MoJ HQ,30/06/2016,265000-IT & Telecommunications,NZ900-Finance & Corporate Services,ATOS IT SERVICES UK LTD,2026918,46.00 ,Provision of IT Peripherals and individually ordered software and equipment
Ministry of Justice,MoJ HQ,30/06/2016,265000-IT & Telecommunications,NZ900-Finance & Corporate Services,ATOS IT SERVICES UK LTD,2026918,46.00 ,Provision of IT Peripherals and individually ordered software and equipment
Ministry of Justice,MoJ HQ,30/06/2016,265000-IT & Telecommunications,NZ900-Finance & Corporate Services,ATOS IT SERVICES UK LTD,2026918,46.00 ,Provision of IT Peripherals and individually ordered software and equipment
Ministry of Justice,MoJ HQ,30/06/2016,265000-IT & Telecommunications,NZ900-Finance & Corporate Services,ATOS IT SERVICES UK LTD,2026918,46.00 ,Provision of IT Peripherals and individually ordered software and equipment
Ministry of Justice,MoJ HQ,30/06/2016,265000-IT & Telecommunications,NZ900-Finance & Corporate Services,ATOS IT SERVICES UK LTD,2026918,31.31 ,Provision of IT Peripherals and individually ordered software and equipment
Ministry of Justice,MoJ HQ,30/06/2016,265000-IT & Telecommunications,NZ900-Finance & Corporate Services,ATOS IT SERVICES UK LTD,2026918,25.95 ,Provision of IT Peripherals and individually ordered software and equipment
Ministry of Justice,MoJ HQ,30/06/2016,265000-IT & Telecommunications,NZ900-Finance & Corporate Services,ATOS IT SERVICES UK LTD,2026918,25.78 ,Provision of IT Peripherals and individually ordered software and equipment
Ministry of Justice,MoJ HQ,30/06/2016,265000-IT & Telecommunications,NZ900-Finance & Corporate Services,ATOS IT SERVICES UK LTD,2026918,25.78 ,Provision of IT Peripherals and individually ordered software and equipment
Ministry of Justice,MoJ HQ,30/06/2016,265000-IT & Telecommunications,NZ900-Finance & Corporate Services,ATOS IT SERVICES UK LTD,2026918,25.78 ,Provision of IT Peripherals and individually ordered software and equipment
Ministry of Justice,MoJ HQ,30/06/2016,265000-IT & Telecommunications,NZ900-Finance & Corporate Services,ATOS IT SERVICES UK LTD,2026918,25.78 ,Provision of IT Peripherals and individually ordered software and equipment
Ministry of Justice,MoJ HQ,30/06/2016,265000-IT & Telecommunications,NZ900-Finance & Corporate Services,ATOS IT SERVICES UK LTD,2026918,25.78 ,Provision of IT Peripherals and individually ordered software and equipment
Ministry of Justice,MoJ HQ,30/06/2016,265000-IT & Telecommunications,NZ900-Finance & Corporate Services,ATOS IT SERVICES UK LTD,2026918,25.78 ,Provision of IT Peripherals and individually ordered software and equipment
Ministry of Justice,MoJ HQ,30/06/2016,265000-IT & Telecommunications,NZ900-Finance & Corporate Services,ATOS IT SERVICES UK LTD,2026918,25.78 ,Provision of IT Peripherals and individually ordered software and equipment
Ministry of Justice,MoJ HQ,30/06/2016,265000-IT & Telecommunications,NZ900-Finance & Corporate Services,ATOS IT SERVICES UK LTD,2026918,25.78 ,Provision of IT Peripherals and individually ordered software and equipment
Ministry of Justice,MoJ HQ,30/06/2016,265000-IT & Telecommunications,NZ900-Finance & Corporate Services,ATOS IT SERVICES UK LTD,2026918,25.78 ,Provision of IT Peripherals and individually ordered software and equipment
Ministry of Justice,MoJ HQ,30/06/2016,265000-IT & Telecommunications,NZ900-Finance & Corporate Services,ATOS IT SERVICES UK LTD,2026918,25.78 ,Provision of IT Peripherals and individually ordered software and equipment
Ministry of Justice,MoJ HQ,30/06/2016,265000-IT & Telecommunications,NZ900-Finance & Corporate Services,ATOS IT SERVICES UK LTD,2026918,25.78 ,Provision of IT Peripherals and individually ordered software and equipment
Ministry of Justice,MoJ HQ,30/06/2016,265000-IT & Telecommunications,NZ900-Finance & Corporate Services,ATOS IT SERVICES UK LTD,2026918,19.27 ,Provision of IT Peripherals and individually ordered software and equipment
Ministry of Justice,MoJ HQ,30/06/2016,265000-IT & Telecommunications,NZ900-Finance & Corporate Services,ATOS IT SERVICES UK LTD,2026918,18.33 ,Provision of IT Peripherals and individually ordered software and equipment
Ministry of Justice,MoJ HQ,30/06/2016,265000-IT & Telecommunications,NZ900-Finance & Corporate Services,ATOS IT SERVICES UK LTD,2026918,18.33 ,Provision of IT Peripherals and individually ordered software and equipment
Ministry of Justice,MoJ HQ,30/06/2016,265000-IT & Telecommunications,NZ900-Finance & Corporate Services,ATOS IT SERVICES UK LTD,2026918,10.26 ,Provision of IT Peripherals and individually ordered software and equipment
Ministry of Justice,MoJ HQ,30/06/2016,265000-IT & Telecommunications,NZ900-Finance & Corporate Services,ATOS IT SERVICES UK LTD,2026918,9.75 ,Provision of IT Peripherals and individually ordered software and equipment
Ministry of Justice,MoJ HQ,30/06/2016,265000-IT & Telecommunications,NZ900-Finance & Corporate Services,ATOS IT SERVICES UK LTD,2026918,9.75 ,Provision of IT Peripherals and individually ordered software and equipment
Ministry of Justice,MoJ HQ,30/06/2016,265000-IT & Telecommunications,NZ900-Finance & Corporate Services,ATOS IT SERVICES UK LTD,2026918,9.75 ,Provision of IT Peripherals and individually ordered software and equipment
Ministry of Justice,MoJ HQ,30/06/2016,265000-IT & Telecommunications,NZ900-Finance & Corporate Services,ATOS IT SERVICES UK LTD,2026918,859.37 ,Provision of IT Peripherals and individually ordered software and equipment
Ministry of Justice,MoJ HQ,30/06/2016,265000-IT & Telecommunications,NZ900-Finance & Corporate Services,ATOS IT SERVICES UK LTD,2026918,859.37 ,Provision of IT Peripherals and individually ordered software and equipment
Ministry of Justice,MoJ HQ,30/06/2016,265000-IT & Telecommunications,NZ900-Finance & Corporate Services,NCC SERVICES LTD,2027048,"104,040.00 ",Technology Transformation Programme IT Health Check On End User Computing
Ministry of Justice,MoJ HQ,06/06/2016,265000-IT & Telecommunications,NZ900-Finance & Corporate Services,VODAFONE LTD (RETAIL),2025710,"36,879.48 ",Vodafone Telephony Services License costs
Ministry of Justice,MoJ HQ,13/06/2016,265000-IT & Telecommunications,NZ900-Finance & Corporate Services,VODAFONE LTD (RETAIL),2026097,"113,590.97 ",Vodafone Telephony Services
Ministry of Justice,MoJ HQ,27/06/2016,265000-IT & Telecommunications,NZ900-Finance & Corporate Services,VODAFONE LTD (RETAIL),2026888,"26,226.66 ",Vodafone Telephony Services
Ministry of Justice,MoJ HQ,30/06/2016,265000-IT & Telecommunications,"RD999-CJG - DGs Office, BDSU, Inspectorates & Ombudsman",ATOS IT SERVICES UK LTD,2026918,41.41 ,Provision of IT Peripherals and individually ordered software and equipment
Ministry of Justice,MoJ HQ,30/06/2016,265000-IT & Telecommunications,"RD999-CJG - DGs Office, BDSU, Inspectorates & Ombudsman",ATOS IT SERVICES UK LTD,2026918,25.78 ,Provision of IT Peripherals and individually ordered software and equipment
Ministry of Justice,MoJ HQ,30/06/2016,265000-IT & Telecommunications,"RD999-CJG - DGs Office, BDSU, Inspectorates & Ombudsman",ATOS IT SERVICES UK LTD,2026918,5.00 ,Provision of IT Peripherals and individually ordered software and equipment
